Cogmind - Beta 10.2 @@@ ROGUE MODE // 2021.01.14 @ 18:08:32 Player: cptwinky Result: Destroyed by Striker with Plasma Lance Performance ------------- Evolutions (9) 4500 Regions Visited (37) 7400 Robots Destroyed (330) 1650 Value Destroyed (13922) 13922 Prototype IDs (82) 1640 Alien Tech Used (13) 2600 Bonus (17909) 17909 TOTAL SCORE: 49621 Bonus ------- Triggered Max Security 2000 High Alert Combat Kills 5142 Follower Combat Kills 1660 Met Data Miner 300 Met Imprinter 300 Met Zhirov 300 MAIN.C Attacked Warlord 500 Hacked Protovariant 1000 Acquired SGEMP 2000 Met Sigix 2000 Activated Exoskeleton 3000 Friendly Fire -293 Cogmind --------- Core Integrity 0/1850 Matter 220/300 Energy 100/100 System Corruption 0% Temperature Cool (0) Movement Core (50) Location -1/Access Parts ------- > --- POWER (2) -------- (None) > --- PROPULSION (8) --- (None) > --- UTILITY (13) ----- Matter Drive > --- WEAPON (2) ------- (None) > --- INVENTORY (4) ---- 2N-1CE's Frost Array Experimental Energy Well (1000) Integrity Redistributor Enhanced Nova Cannon Peak State ------------ > --- POWER ------------ Micro Fission Core Mini Fusion Reactor > --- PROPULSION ------- Improved Diametric Drive Improved Diametric Drive Cooled Impulse Thruster Impulse Thruster Array Impulse Thruster Array > --- UTILITY ---------- 2N-1CE's Frost Array Large Storage Unit Large Storage Unit Large Storage Unit Experimental Signal Interpreter Experimental Terrain Scan Processor Advanced Transmission Jammer Advanced Reaction Control System Experimental Hacking Suite Experimental Hacking Suite System Mapper Experimental System Shield > --- WEAPON ----------- Sigix Broadsword > --- INVENTORY -------- Mini Fusion Reactor Energy Well Experimental Sensor Array Experimental Terrain Scanner Advanced Melee Analysis Suite Hardened Medium Armor Plating System Restoration Module Transdimensional Reconstructor High-powered Transdimensional Reconstructor Subatomic Replicator Matter Drive Compact HERF Cannon Enhanced Nova Cannon Hypervelocity Multirail Mini Smartbomb Launcher Core Stripper SGEMP Prototype Sigix Containment Pod [Rating: 197] Favorites ----------- Power Micro Fission Core Engine Light Deuterium Engine Power Core Micro Fission Core Reactor Mini Fusion Reactor Propulsion Cooled VTOL Module Treads Armored Treads Leg Carbon-fiber Leg Wheel Wheel Hover Unit Cooled Gravmag System Flight Unit Cooled VTOL Module Utility Large Storage Unit Device Experimental Sensor Array Storage Large Storage Unit Processor Experimental Signal Interpreter Hackware Advanced Hacking Suite Protection Light Armor Plating Artifact Matter Drive Weapon Enhanced Autogun Energy Gun EM Pulse Gun Energy Cannon Heavy Phase Cannon Ballistic Gun Enhanced Autogun Ballistic Cannon Light Cannon Launcher Mini Smartbomb Launcher Special Weapon Experimental Stasis Projector Impact Weapon Mace Slashing Weapon Power Sword Piercing Weapon Makeshift Spear Special Melee Weapon Improved Datajack Build | -11 -10 -10 -10 -9 -8 -7 -7 -7 -7 -6 -6 -6 -6 -6 -6 -6 -5 -5 -5 -5 -5 -5 -5 -4 -4 -4 -4 -4 -4 -4 -3 -3 -3 -2 -2 -2 -1 ------- Run | Scr Mat Min Exi Min Mat Fac Low Low Zio Pro Fac Was Fac Low Low Dat Pro Fac Was Fac Upp Upp Zhi Pro Fac Was Fac Upp Upp War Pro Res Tes Res Qua Sec Acc Slots Evolved 18 | . . . . . 4 2 . . . . 2 . . . . . . 2 . . . . . . 2 . . . . . . 2 . 2 . . 2 Power 1 | . . . . . . 1 . . . . . . . . . . . . . . . . . . . . . . . . . . . . . . . Propulsion 6 | . . . . . 1 1 . . . . . . . . . . . 1 . . . . . . 1 . . . . . . . . 1 . . 1 Utility 11 | . . . . . 3 . . . . . 2 . . . . . . 1 . . . . . . 1 . . . . . . 2 . 1 . . 1 Weapon . | . . . . . . . . . . . . . . . . . . . . . . . . . . . . . . . . . . . . . . Parts Attached 480 | 7 12 3 2 12 40 61 2 2 3 14 25 3 16 10 3 2 8 23 . 17 5 9 8 13 28 . 20 2 7 6 15 6 12 7 13 22 42 Power 36 | 1 1 1 . 2 4 10 . . 1 2 1 . . . . . . 2 . . . . 2 . 3 . 2 . . 1 . . . 1 . 1 1 Engine 18 | 1 1 1 . 2 3 7 . . 1 1 1 . . . . . . . . . . . . . . . . . . . . . . . . . . Core 13 | . . . . . 1 3 . . . 1 . . . . . . . 2 . . . . 1 . 2 . 1 . . 1 . . . . . 1 . Reactor 5 | . . . . . . . . . . . . . . . . . . . . . . . 1 . 1 . 1 . . . . . . 1 . . 1 Propulsion 73 | 2 1 1 . 4 12 17 1 . . . 2 2 3 1 . . . 3 . 1 . . 2 . 2 . 2 . 1 . . . 2 1 2 1 10 Treads 20 | 2 1 1 . 1 5 10 . . . . . . . . . . . . . . . . . . . . . . . . . . . . . . . Leg 16 | . . . . . 6 . . . . . . . . . . . . . . . . . . . . . . . . . . . . . . . 10 Wheel 4 | . . . . 3 1 . . . . . . . . . . . . . . . . . . . . . . . . . . . . . . . . Hover 1 | . . . . . . . . . . . . . . . . . . . . . . . 1 . . . . . . . . . . . . . . Flight 32 | . . . . . . 7 1 . . . 2 2 3 1 . . . 3 . 1 . . 1 . 2 . 2 . 1 . . . 2 1 2 1 . Utility 168 | 2 2 . 2 . 9 17 . . 2 4 7 . 10 5 1 1 3 5 . 7 1 3 4 7 8 . 9 2 3 3 7 5 6 2 3 19 9 Device 96 | . . . . . 2 7 . . 2 4 2 . 2 2 1 . 2 1 . 5 . 3 1 7 4 . 7 1 3 2 7 4 5 1 2 16 3 Storage 18 | 2 2 . 2 . 1 3 . . . . 1 . . 2 . . . 1 . . . . 1 . 1 . . . . . . . . 1 1 . . Processor 5 | . . . . . . 1 . . . . 1 . . . . . . . . 1 . . . . . . . . . . . . . . . 1 1 Hackware 18 | . . . . . 2 1 . . . . 2 . 5 . . . . 2 . . . . 1 . 3 . 1 . . . . . 1 . . . . Protection 30 | . . . . . 4 5 . . . . 1 . 3 1 . 1 1 1 . 1 1 . 1 . . . 1 1 . 1 . 1 . . . 2 4 Artifact 1 | . . . . . . . . . . . . . . . . . . . . . . . . . . . . . . . . . . . . . 1 Weapon 203 | 2 8 1 . 6 15 17 1 2 . 8 15 1 3 4 2 1 5 13 . 9 4 6 . 6 15 . 7 . 3 2 8 1 4 3 8 1 22 Energy Gun 9 | 2 1 . . 1 3 . . . . . 1 . . . . . . . . . . . . . . . . . . . . . . . . . 1 Energy Cannon 52 | . 3 . . 3 . . . 1 . 3 6 . 1 2 . 1 1 5 . . . 1 . 3 1 . 1 . 1 . 4 1 2 2 3 1 6 Ballistic Gun 46 | . 1 . . 1 7 10 . . . . . . 1 2 . . 3 5 . 1 2 2 . 3 2 . 1 . . . . . . . 1 . 4 Ballistic Cannon 8 | . 1 . . 1 . . . . . . . . . . . . . . . . . . . . 1 . 2 . . . 3 . . . . . . Launcher 27 | . 1 1 . . . 2 . . . 1 . . . . . . 1 . . 1 2 1 . . 2 . 3 . 2 . 1 . . . 1 . 8 Special Weapon 1 | . . . . . . . . . . . . . . . . . . . . . . . . . . . . . . . . . 1 . . . . Impact Weapon 3 | . . . . . 2 . . . . . . . . . . . . . . . . . . . . . . . . . . . . . 1 . . Slashing Weapon 18 | . . . . . . 5 . . . . . . . . . . . . . 4 . 1 . . 1 . . . . . . . 1 1 2 . 3 Piercing Weapon 23 | . . . . . . . 1 1 . 4 7 1 1 . 1 . . 2 . . . . . . 4 . . . . 1 . . . . . . . Special Melee Weapon 16 | . 1 . . . 3 . . . . . 1 . . . 1 . . 1 . 3 . 1 . . 4 . . . . 1 . . . . . . . Unidentified Prototypes 28 | . . . . . 2 2 . . 1 . 1 . 1 . . . . . . . . . 4 . . . . . . 1 . . 2 . 2 6 6 Parts Lost 47 | . 2 . . 12 4 4 . . . . . . . . . . . 1 . . . . . . . . . . . . . 1 . . . 2 21 Power 6 | . . . . 3 . 2 . . . . . . . . . . . . . . . . . . . . . . . . . . . . . . 1 Propulsion 16 | . . . . 4 2 1 . . . . . . . . . . . . . . . . . . . . . . . . . . . . . . 9 Utility 14 | . . . . . 1 1 . . . . . . . . . . . 1 . . . . . . . . . . . . . 1 . . . 2 8 Weapon 11 | . 2 . . 5 1 . . . . . . . . . . . . . . . . . . . . . . . . . . . . . . . 3 Highest Loss Streak 12 | . 1 . . 12 2 1 . . . . . . . . . . . 1 . . . . . . . . . . . . . 1 . . . 1 12 Average Slot Usage (%) 93 | . 99 100 100 85 98 96 91 92 92 92 91 99 99 99 100 100 100 94 88 90 88 88 86 88 86 89 88 89 89 89 89 89 88 90 89 85 77 Engine 4 | . 14 14 14 10 7 8 7 7 13 13 9 . . . . . . . . . . . . . . . . . . . . . . . . . . Core 5 | . . . . . 1 4 7 7 1 1 3 13 13 13 13 13 13 11 11 11 11 11 10 11 6 5 6 10 10 10 10 9 9 4 4 4 3 Treads 8 | . 27 28 28 19 20 20 . . . . . . . . . . . . . . . . . . . . . . . . . . . . . . . Leg 1 | . . . . . 4 . . . . . . . . . . . . . . . . . . . . . . . . . . . . . . . 19 Flight 14 | . . . . . . 9 29 30 30 30 26 26 25 26 26 26 26 24 23 19 17 17 16 17 18 21 20 21 21 21 21 19 19 20 20 20 2 Device 4 | . . . . . 1 3 7 7 7 7 6 6 5 5 6 4 5 4 5 9 5 5 1 5 5 5 5 5 5 5 5 13 13 17 13 11 5 Storage 13 | . 28 28 28 28 27 12 7 7 7 7 6 6 6 6 6 6 6 5 5 5 5 5 5 5 7 10 10 10 10 10 10 9 9 8 12 13 10 Processor 5 | . . . . . . 2 7 7 7 7 6 6 6 6 6 6 6 5 5 5 11 11 11 11 10 10 10 10 10 10 10 9 9 8 8 8 13 Hackware 16 | . . . . . 8 15 15 15 15 15 24 26 26 26 26 26 26 28 23 23 23 23 23 23 23 21 21 21 21 21 21 19 19 17 17 16 8 Protection 1 | . . . . . 8 2 . . . . . . . . . 1 . . . . . . 1 . . . . . . . . . . . . . 5 Energy Gun 1 | . 20 . . 2 2 . . . . . . . . . . . . . . . . . . . . . . . . . . . . . . . . Ballistic Gun 4 | . 5 . . 2 14 9 . . . . . . . 5 6 4 3 4 5 4 4 4 5 3 . . . . . . . . . . . . 1 Slashing Weapon 1 | . . . . . . 2 3 . . . . . . . . . . . . 4 5 5 5 5 1 . . . . . . . 1 3 4 3 . Piercing Weapon 2 | . . . . . . . 3 6 7 5 5 12 6 6 5 6 6 4 5 . . . . . 3 5 5 5 5 5 5 4 2 . . . . Naked Turns . | . . . . . . . . . . . . . . . . . . . . . . . . . . . . . . . . . . . . . . Heaviest Build 109 | 15 44 44 75 81 101 96 23 28 23 27 27 22 29 28 26 30 28 40 35 38 37 35 37 39 57 51 61 61 55 55 55 58 76 69 77 79 109 Greatest Support 220 | 40 40 40 40 40 62 82 25 25 25 29 30 29 31 31 29 31 31 43 43 54 54 54 54 54 64 64 64 61 61 61 61 61 72 81 83 93 220 Greatest Overweight (x) 22 | . 1 1 1 22 9 1 . 1 . 1 1 . 1 . . 1 . . . . . . . . . . 1 . . . . . 1 . . . 2 Average Overweight (x) . | . . 1 1 1 1 . . . . . . . . . . . . . . . . . . . . . . . . . . . . . . . . Largest Inventory Capacity 26 | 8 16 16 20 20 26 26 8 8 8 8 12 8 8 24 8 8 8 10 10 10 10 10 10 10 16 16 16 16 16 16 16 16 16 16 22 22 22 Average Capacity 14 | 5 15 16 18 20 25 13 8 8 8 8 8 8 8 8 8 8 8 9 10 10 10 10 10 10 12 16 16 16 16 16 16 16 16 16 21 22 20 Most Carried 26 | 4 16 16 18 18 26 25 8 8 8 8 8 8 8 8 8 8 8 10 10 10 10 10 10 10 13 16 16 16 16 16 16 16 16 16 22 22 22 Average Carried 13 | 2 10 15 17 15 22 13 7 7 7 7 7 7 7 7 8 8 8 8 10 9 10 9 9 9 10 15 15 16 16 15 16 14 15 15 20 21 19 Final Capacity 26 | 8 16 16 20 20 26 8 8 8 8 8 8 8 8 8 8 8 8 10 10 10 10 10 10 10 16 16 16 16 16 16 16 16 16 16 22 22 4 Final Carried 26 | 4 16 16 18 11 26 8 8 7 8 8 8 8 8 8 8 8 8 10 10 10 10 10 10 10 13 16 16 16 16 16 16 16 16 16 22 21 4 Class Distribution -------------------- 37% | Hacker-Sprinter 15% | Wizard-Sprinter 15% | Hauler-Mutant 10% | Mutant 9% | Hacker-Mutant 6% | Wizard-Scout 3% | Scavenger-Mutant Dominant Class ---------------- Mutant | -10/Materials Mutant | -10/Mines Hauler-Mutant | -10/Exiles Hauler-Mutant | -9/Mines Hauler-Mutant | -8/Materials Hacker-Mutant | -7/Factory Hacker-Sprinter | -7/Lower Caves Hacker-Sprinter | -7/Lower Caves Hacker-Sprinter | -7/Zion Hacker-Sprinter | -6/Proximity Caves Hacker-Sprinter | -6/Factory Hacker-Sprinter | -6/Waste Hacker-Sprinter | -6/Factory Hacker-Sprinter | -6/Lower Caves Hacker-Sprinter | -6/Lower Caves Hacker-Sprinter | -6/Data Miner Hacker-Sprinter | -5/Proximity Caves Wizard-Sprinter | -5/Factory Wizard-Sprinter | -5/Waste Hacker-Sprinter | -5/Factory Hacker-Sprinter | -5/Upper Caves Hacker-Sprinter | -5/Upper Caves Hacker-Sprinter | -5/Zhirov Hacker-Sprinter | -4/Proximity Caves Wizard-Sprinter | -4/Factory Wizard-Sprinter | -4/Waste Wizard-Sprinter | -4/Factory Wizard-Sprinter | -4/Upper Caves Wizard-Sprinter | -4/Upper Caves Wizard-Sprinter | -4/Warlord Wizard-Sprinter | -3/Proximity Caves Wizard-Scout | -3/Research Wizard-Scout | -3/Testing Wizard-Scout | -2/Research Wizard-Scout | -2/Quarantine Wizard-Sprinter | -2/Section 7 Scavenger-Mutant | -1/Access Resources | -11 -10 -10 -10 -9 -8 -7 -7 -7 -7 -6 -6 -6 -6 -6 -6 -6 -5 -5 -5 -5 -5 -5 -5 -4 -4 -4 -4 -4 -4 -4 -3 -3 -3 -2 -2 -2 -1 ----------- Run | Scr Mat Min Exi Min Mat Fac Low Low Zio Pro Fac Was Fac Low Low Dat Pro Fac Was Fac Upp Upp Zhi Pro Fac Was Fac Upp Upp War Pro Res Tes Res Qua Sec Acc Matter Collected 9268 | 260 143 63 20 93 952 1079 20 20 30 142 290 30 130 375 200 20 140 507 . 310 260 290 80 48 889 . . 145 258 40 450 . 180 85 170 335 1214 Remotely . | . . . . . . . . . . . . . . . . . . . . . . . . . . . . . . . . . . . . . . Salvage Created 16492 | 103 634 28 . 168 1614 1186 53 . . 61 290 . 446 485 300 . 188 1028 . 1100 384 250 89 31 1381 . 60 55 272 113 478 20 223 195 152 663 4442 Parts 719 | 7 44 9 . 6 100 69 5 . . 1 11 . 22 14 6 . 10 47 . 31 10 8 1 1 46 . 4 1 8 6 12 1 7 6 10 52 164 Haulers Intercepted 29 | . 2 . . . 6 4 . . . . 2 . 2 . . . . 3 . 6 . . . . 2 . . . . . . . . 1 . 1 . Recyclers Shooed 6 | . . . . 1 1 1 . . . . . . . . . . . 1 . . . . . . 1 . . . . . . . . 1 . . . Parts Field Recycled . | . . . . . . . . . . . . . . . . . . . . . . . . . . . . . . . . . . . . . . Retrieved Matter . | . . . . . . . . . . . . . . . . . . . . . . . . . . . . . . . . . . . . . . Parts Self-Destructed 87 | . . . . . . . 10 . . 2 . . . 14 21 . 8 . . . 11 1 . 3 . . . . 1 6 10 . . . . . . Prevented 9 | . . . . . . . 2 1 . . . . . . . . . . . . . . . . . . . . . 6 . . . . . . . Kills | -11 -10 -10 -10 -9 -8 -7 -7 -7 -7 -6 -6 -6 -6 -6 -6 -6 -5 -5 -5 -5 -5 -5 -5 -4 -4 -4 -4 -4 -4 -4 -3 -3 -3 -2 -2 -2 -1 ------- Run | Scr Mat Min Exi Min Mat Fac Low Low Zio Pro Fac Was Fac Low Low Dat Pro Fac Was Fac Upp Upp Zhi Pro Fac Was Fac Upp Upp War Pro Res Tes Res Qua Sec Acc Combat Hostiles Destroyed 219 | . 11 5 . 4 24 21 . . . 1 . . 1 7 5 . 5 9 . 2 11 6 . . 18 . 1 . 4 . 4 . . . 2 9 69 Melee 17 | . . . . . . 1 . . . . . . 1 . 1 . . . . 1 1 . . . 1 . . . . . . . . . . 9 2 Guns 96 | . 7 . . 2 24 14 . . . . . . . 6 4 . 2 4 . 1 2 2 . . 1 . . . . . . . . . 2 . 25 Cannons 15 | . 2 2 . 2 . . . . . . . . . . . . . . . . . . . . 2 . 1 . . . 1 . . . . . 5 AOE 89 | . 2 3 . . . 6 . . . 1 . . . 1 . . 3 5 . . 8 4 . . 14 . . . 4 . 3 . . . . . 35 Classes Destroyed 28 | 2 5 1 . 3 3 1 1 . . . 1 . . . 2 . . . . . . 1 . . 1 . . 1 . . . . . . . . 6 Worker 13 | 1 1 . . 1 . 1 . . . . . . . . . . . 2 . . . . . . 2 . . . . . . 1 . . 1 . 3 Builder 3 | . . . . . 1 . . . . . . . . . . . . 1 . . . . . . . . . . . . . . . . . . 1 Tunneler 2 | . . 1 . . . . . . . . . . . . . . . . . . . . . . . . . . . . . . . . . . 1 Hauler 29 | . 2 . . . 6 4 . . . . 2 . 2 . . . . 3 . 6 . . . . 2 . . . . . . . . 1 . 1 . Recycler 13 | 1 . . . 1 . 2 . . . . . . . . . . . 1 . 1 . . . . 4 . . . . . . . 1 1 . . 1 Carrier 2 | . . . . . . . . . . . . . . . . . . . . . . . . . . . . . . . . . . . . . 2 Minesweeper 5 | . . . . . . . 2 . . . . . . . 1 . . . . . . . . 1 . . . 1 . . . . . . . . . Mechanic 2 | . . . . . . . . . . . 1 . . . . . . . . . . . . . . . . . . . . . . . . . 1 Operator 5 | . 2 . . . 2 . . . . . . . . . . . . . . . . . . . 1 . . . . . . . . . . . . Drone 2 | . . . . . . . . . . . . . . . . . . . . . . . . . 1 . . . . . . . . . . 1 . Watcher 34 | . 3 . . . 5 2 . . . . 2 . 7 . . . . 3 . 6 . . . . 3 . . . . . . . 2 . . . 1 Swarmer 52 | . 3 5 . . 5 8 . . . . . . . . . . 4 . . . 4 3 . . 9 . . . 4 . . . . . . . 7 Saboteur 6 | . . . . . . . . . . . . . . . . . . . . . . . . . . . . . . . . . . . . . 6 Grunt 74 | . 8 . . 1 9 5 . . . 1 . . 1 6 2 . . 6 . 1 1 1 . . 4 . . . . . . . . . . 1 27 Brawler 10 | . . . . 1 . . . . . . . . . 1 1 . . . . . 1 . . . . . . . . . . . . . . . 6 Duelist 9 | . . . . . . . . . . . . . . . 1 . . . . . . . . . . . . . . . . . . . . . 8 Protector 3 | . . . . . . . . . . . . . . . . . . . . . . . . . . . . . . . . . . . . . 3 Sentry 20 | . . . . . 6 3 . . . . . . . . . . 1 3 . 1 . 1 . . 2 . . . . . 1 . . . . . 2 Demolisher 1 | . . . . 1 . . . . . . . . . . . . . . . . . . . . . . . . . . . . . . . . . Hunter 12 | . . . . . 4 1 . . . . . . . . . . . . . . . . . . 2 . . . . . 2 . . . . 1 2 Programmer 17 | . . . . . . 4 . . . . . . . . . . . . . . . . . . . . 1 . . 2 1 . . . . 6 3 Quarantine Guard 2 | . . . . . . . . . . . . . . . . . . . . . . . . . . . . . . . . . . . 2 . . Investigator 1 | . . . . . . . . . . . . . . . . . . . . . . . . . . . . . . . . . . . . . 1 Striker 3 | . . . . . . . . . . . . . . . . . . . . . . . . . . . . . . . . . . . . . 3 Executioner 2 | . . . . . . . . . . . . . . . . . . . . . . . . . . . . . . . . . . . . . 2 Samaritan 6 | . . . . . . . . . . . . . . . . . . . . . . . . . . . . 1 5 . . . . . . . . Thief 1 | . . . . . . . . . . . . . . . 1 . . . . . . . . . . . . . . . . . . . . . . Assembled 1 | . . . . 1 . . . . . . . . . . . . . . . . . . . . . . . . . . . . . . . . . Thug 4 | . . . . . . . . . . . . . . . . . . . . . 3 1 . . . . . . . . . . . . . . . Butcher 2 | . . . . . . . . . . . . . . . . . . . . . 2 . . . . . . . . . . . . . . . . Mutant 1 | . . . . . . . . . . . . . . . . . . . . . . 1 . . . . . . . . . . . . . . . Best Kill Streak 47 | 2 4 3 . 3 5 4 1 . . 1 2 . 2 4 2 . 4 8 . 2 6 5 . 1 6 . 1 1 4 . 2 1 1 1 2 3 47 Combat Bots Only 39 | . 3 3 . 2 4 4 . . . 1 . . 1 4 2 . 4 5 . 1 6 5 . . 5 . 1 . 4 . 2 . . . 2 3 39 Max Kills in Single Turn 8 | 1 2 3 . 1 2 3 1 . . 1 1 . 1 1 1 . 2 8 . 1 4 2 . 1 4 . 1 1 3 1 1 1 1 1 1 1 4 Gunslinging 1 | . . . . . 1 . . . . . . . . . . . . . . . . . . . . . . . . . . . . . . . . Exploded 5 | . 2 3 . . . 3 . . . 1 . . . 1 . . 2 5 . . 4 2 . . 3 . . . 3 . 1 . . . . . 4 Melee 1 | . . . . . . 1 . . . . . . 1 . 1 . . . . 1 1 . . . 1 . . . . . . . . . . 1 1 Uniques/NPCs Destroyed 3 | . . . . . . . . . . . . . . . . . . . . . . . . . . . . . . . . . . . . . 3 Svarog (-1/Access) Zhirov (-1/Access) Perun (-1/Access) Combat | -11 -10 -10 -10 -9 -8 -7 -7 -7 -7 -6 -6 -6 -6 -6 -6 -6 -5 -5 -5 -5 -5 -5 -5 -4 -4 -4 -4 -4 -4 -4 -3 -3 -3 -2 -2 -2 -1 -------- Run | Scr Mat Min Exi Min Mat Fac Low Low Zio Pro Fac Was Fac Low Low Dat Pro Fac Was Fac Upp Upp Zhi Pro Fac Was Fac Upp Upp War Pro Res Tes Res Qua Sec Acc Damage Taken 15185 | . 450 85 . 1432 1594 1975 . . . 39 48 . 33 . . 92 46 99 . 173 22 . . . 146 . 254 . 29 . 27 266 . 300 181 1682 6212 Core 2539 | . 10 17 . 208 176 115 . . . . . . . . . 45 32 21 . 43 . . . . 39 . 51 . . . . 26 . 95 . 121 1540 Absorbed by Shields 111 | . . . . . 111 . . . . . . . . . . . . . . . . . . . . . . . . . . . . . . . . Core Remaining (%) 79 | 100 . . . 6 68 . . . . 83 . . . . . . 90 . . . . . . 93 . . . . . . 92 . 98 . . 84 . Volleys Fired 864 | 2 45 7 . 25 134 71 . 2 . 13 20 . 22 50 34 3 18 79 . 11 26 25 . 5 51 . 16 . 5 . 38 9 4 2 24 3 120 Largest 2 | 2 2 1 . 2 2 2 . 1 . 1 1 . 1 1 1 1 1 2 . 1 1 1 . 1 1 . 1 . 1 . 1 1 1 1 1 1 2 Hottest 123 | 80 80 35 . 112 79 56 . 65 . 90 90 . 90 90 33 90 90 123 . 35 80 98 . 98 98 . 98 . 98 . 98 98 98 98 120 120 120 Shots Fired 1108 | 4 84 7 . 35 239 133 . 2 . 13 20 . 22 50 34 3 18 80 . 11 26 25 . 5 51 . 16 . 5 . 38 9 4 2 24 3 145 Gun 745 | 4 79 . . 11 239 127 . . . . 3 . 3 46 34 . 6 69 . 11 20 18 . . 13 . 3 . . . . . . . 5 . 54 Cannon 284 | . 5 6 . 24 . . . 2 . 10 17 . 19 4 . 3 9 11 . . . 2 . 5 25 . 13 . 2 . 33 9 4 2 16 3 60 Launcher 79 | . . 1 . . . 6 . . . 3 . . . . . . 3 . . . 6 5 . . 13 . . . 3 . 5 . . . 3 . 31 Special . | . . . . . . . . . . . . . . . . . . . . . . . . . . . . . . . . . . . . . . Kinetic 694 | . 23 6 . 23 181 127 . . . . . . 3 46 34 . 6 69 . 11 20 18 . . 37 . 6 . . . 25 . . . 5 . 54 Thermal 176 | . . . . 4 30 . . 2 . 10 17 . 19 4 . 3 9 11 . . . 2 . 5 1 . 10 . 2 . 8 9 4 2 16 3 5 Explosive 77 | . . 1 . . . 6 . . . 3 . . . . . . 3 . . . 6 5 . . 13 . . . 3 . 5 . . . 3 . 29 Electromagnetic 159 | 4 61 . . 8 28 . . . . . 3 . . . . . . . . . . . . . . . . . . . . . . . . . 55 Robot Hit Streak 21 | 1 15 4 . 8 19 13 . . . 4 5 . 2 6 14 . 3 9 . 6 10 11 . . 18 . 2 . . . 14 . . . 16 . 21 Robot Miss Streak 6 | 1 4 2 . 4 3 3 . . . . 3 . . 2 2 . 1 2 . 4 1 1 . . 3 . 1 . . . 2 . . . 4 . 6 Penetration Max 2 | . . . . . . . . . . . . . . 1 . . . 1 . 1 1 1 . . . . . . . . . . . . . . 2 Secondary Targets 15 | . 2 . . . 5 2 . . . . . . . . . . . . . . . . . . . . . . . . . . . . . . 6 Max Gunslinging Chain 1 | . 1 . . . 1 1 . . . . . . . . . . . . . . . . . . . . . . . . . . . . . . 1 Shots Hit Robots 860 | 2 53 4 . 25 182 114 5 . . 1 10 . 14 29 37 1 8 51 . 40 21 16 2 3 48 . 4 6 6 9 22 2 3 11 6 23 102 Core Hits 595 | 2 27 5 . 9 70 50 1 . . 5 9 . 11 14 13 . 7 34 . 20 20 13 1 1 47 . 1 3 8 2 7 1 3 2 7 10 192 Critical Hits 124 | . 1 . . . 1 1 . . . . . . 2 10 6 . 3 8 . 3 5 6 . . 4 . 1 . . . 3 . . . 3 5 62 Critical Kills 60 | . 1 . . . . 1 . . . . . . 2 6 3 . 2 4 . 1 2 3 . . 2 . 1 . . . 1 . . . 2 3 26 Critical Parts Destroyed 49 | . . . . . 1 . . . . . . . . 4 3 . . 4 . 2 3 3 . . 2 . . . . . 1 . . . 1 2 23 Melee Attacks 561 | . . . . . 2 27 11 3 . 9 42 . 70 4 28 7 12 29 . 53 8 7 2 7 54 . 19 6 7 10 10 16 21 28 15 52 2 Impact 2 | . . . . . 2 . . . . . . . . . . . . . . . . . . . . . . . . . . . . . . . . Slashing 234 | . . . . . . 27 10 . . . . . . . . . . . . 53 8 5 2 7 21 . . . . . . . 4 28 15 52 2 Piercing 311 | . . . . . . . 1 3 . 9 42 . 70 4 25 7 12 28 . . . . . . 30 . 19 6 7 5 10 16 17 . . . . Sneak Attacks 74 | . . . . . . 5 2 . . . 2 . 2 . 4 1 . 4 . 11 . 2 . 1 15 . . 3 6 9 . 1 1 3 . 2 . Combat Hostiles 7 | . . . . . . 3 . . . . . . . . . . . . . . . . . . 3 . . . . . . . . . . 1 . Follow-up Attacks . | . . . . . . . . . . . . . . . . . . . . . . . . . . . . . . . . . . . . . . Damage Inflicted 42950 | 28 1022 172 . 474 2917 3111 299 . . 381 464 . 653 326 568 97 686 2606 . 2489 1377 722 278 254 5056 . 86 541 1234 473 916 211 237 967 450 2188 11667 Guns 7196 | 28 710 . . 141 2841 1709 . . . . 33 . 6 142 125 . 19 304 . 69 127 101 . . 23 . 10 . . . . . . . 36 . 772 Cannons 1971 | . 98 77 . 333 . . . . . . . . 30 31 . . . . . . . . . . 99 . 15 . . . 47 . . . . . 1241 Explosions 18489 | . 214 93 . . 42 554 . . . 381 . . . 153 . . 427 1566 . . 1057 621 . . 2571 . . . 434 . 308 . . . 414 . 9654 Melee 15251 | . . . . . . 841 299 . . . 431 . 617 . 443 97 240 736 . 2420 193 . 278 254 2363 . 61 541 800 473 561 211 237 967 . 2188 . Ramming 43 | . . 2 . . 34 7 . . . . . . . . . . . . . . . . . . . . . . . . . . . . . . . Kinetic 6189 | . 96 77 . 259 2153 1709 . . . . . . 6 142 125 . 19 304 . 69 127 101 . . 122 . 25 . . . 47 . . . 36 . 772 Thermal 3213 | . 214 . . 86 426 . . . . . . . 30 184 . . . 1566 . . . . . . 601 . . . . . . . . . . . 106 Explosive 15881 | . . 93 . . . 554 . . . 381 . . . . . . 427 . . . 1057 621 . . 1938 . . . 434 . 308 . . . 414 . 9654 Electromagnetic 2373 | 28 712 . . 129 304 . . . . . 33 . . . . . . . . . . . . . 32 . . . . . . . . . . . 1135 Impact . | . . . . . . . . . . . . . . . . . . . . . . . . . . . . . . . . . . . . . . Slashing 8411 | . . . . . . 841 232 . . . . . . . . . . . . 2420 193 . 278 254 1038 . . . . . . . . 967 . 2188 . Piercing 6840 | . . . . . . . 67 . . . 431 . 617 . 443 97 240 736 . . . . . . 1325 . 61 541 800 473 561 211 237 . . . . Highest Corruption 9 | . 1 1 1 6 1 3 . . . . . . . . . . . . 5 5 . . . . . 8 9 9 9 9 . . . 1 1 3 . Average Corruption 3 | . 1 1 1 1 1 1 . . . . . . . . . . . . 5 3 . . . . . 8 8 9 9 9 . . . 1 1 2 . Corruption Purged 14 | . . . . . . 4 . . . . . . . . . . . . . 6 . . . . . . . . . . . . . . 1 3 . Effects 77 | . 1 4 1 3 . 3 . . . . . . . . . . . . . 22 . . . . . . 21 5 5 . . . . 1 3 8 . Message Errors 28 | . 1 4 1 . . . . . . . . . . . . . . . . 8 . . . . . . 10 . 2 . . . . 1 . 1 . Matter Fused 4 | . . . . . . . . . . . . . . . . . . . . 2 . . . . . . 2 . . . . . . . . . . Heat Flow Errors 6 | . . . . . . 1 . . . . . . . . . . . . . 3 . . . . . . 1 . . . . . . . . 1 . Energy Discharges 17 | . . . . 1 . 1 . . . . . . . . . . . . . 3 . . . . . . 4 3 1 . . . . . 3 1 . Parts Rejected 1 | . . . . . . . . . . . . . . . . . . . . . . . . . . . . . 1 . . . . . . . . Data Loss (minor) 9 | . . . . 1 . 1 . . . . . . . . . . . . . 2 . . . . . . 1 2 . . . . . . . 2 . Targeting Errors 12 | . . . . 1 . . . . . . . . . . . . . . . 4 . . . . . . 3 . 1 . . . . . . 3 . Overload Shots . | . . . . . . . . . . . . . . . . . . . . . . . . . . . . . . . . . . . . . . Overflow Damage 3894 | . . 2 . . . 216 138 . . . . . 35 . 134 . 90 331 . 338 30 28 115 120 813 . . 222 194 114 150 2 . 137 22 263 400 Projectiles 35 | . . 2 . . . . . . . . . . . . . . . . . . . . . . . . . . . . . . . . . . 33 Explosions 896 | . . . . . . . . . . . . . . . . . 90 199 . . 30 28 . . 124 . . . 36 . . . . . 22 . 367 Melee 2963 | . . . . . . 216 138 . . . . . 35 . 134 . . 132 . 338 . . 115 120 689 . . 222 158 114 150 2 . 137 . 263 . Knockbacks 6 | . . 1 . 3 1 . . . . . . . . . . . . . . . . . . . 1 . . . . . . . . . . . . Impact 1 | . . . . . 1 . . . . . . . . . . . . . . . . . . . . . . . . . . . . . . . . Kinetic 5 | . . 1 . 3 . . . . . . . . . . . . . . . . . . . . 1 . . . . . . . . . . . . Secondary . | . . . . . . . . . . . . . . . . . . . . . . . . . . . . . . . . . . . . . . Self-Inflicted Damage 59 | . 59 . . . . . . . . . . . . . . . . . . . . . . . . . . . . . . . . . . . . Shots 1 | . 1 . . . . . . . . . . . . . . . . . . . . . . . . . . . . . . . . . . . . Rammed 9 | . . 1 . . 7 1 . . . . . . . . . . . . . . . . . . . . . . . . . . . . . . . Targets Rammed 11 | 1 . 2 . . 7 1 . . . . . . . . . . . . . . . . . . . . . . . . . . . . . . . Kicked . | . . . . . . . . . . . . . . . . . . . . . . . . . . . . . . . . . . . . . . Crushed 2 | 1 . 1 . . . . . . . . . . . . . . . . . . . . . . . . . . . . . . . . . . . Highest Temperature 280 | 36 198 . . 129 66 271 . 60 . 112 192 . 176 93 13 172 208 177 2 257 129 126 . 120 280 2 253 2 124 14 144 226 120 . . 65 . Average Temperature 49 | 20 53 . . 44 13 63 . 32 . 48 51 . 61 33 5 117 61 30 2 38 42 51 . 54 90 2 23 2 66 2 50 72 50 . . 65 . Received Heat Transfer 1680 | . 135 . . 108 414 288 . . . 18 . . 9 . . 12 . 9 . 54 9 . . . 9 . 30 . . . 9 54 . 18 9 108 387 Siege Activations . | . . . . . . . . . . . . . . . . . . . . . . . . . . . . . . . . . . . . . . Robots Corrupted 3 | . . . . . . . . . . . . . . . . . . . . . . . . . . . . . . . . . . . . . 3 Combat Hostiles 2 | . . . . . . . . . . . . . . . . . . . . . . . . . . . . . . . . . . . . . 2 Parts Fried 14 | . 4 . . . 3 . . . . . . . 2 . . . . . . 1 . . . . . . . . . . . . . . . . 4 Impact Corruptions . | . . . . . . . . . . . . . . . . . . . . . . . . . . . . . . . . . . . . . . Robots Melted . | . . . . . . . . . . . . . . . . . . . . . . . . . . . . . . . . . . . . . . Combat Hostiles . | . . . . . . . . . . . . . . . . . . . . . . . . . . . . . . . . . . . . . . Parts Melted 6 | . . . . 1 . . . . . . . . . 1 . . . . . 1 . . . . . . . . . . . . . . . . 3 Heat Transferred 2942 | . 100 . . 148 975 . . . . . . . 37 277 . . . 1000 . . . . . . 350 . . . . . . . . . . . 55 Parts Sabotaged 7 | . . . . . . . . . . . . . . . . . . . . . . . . . . . . . . . . . . . . . 7 Parts Stolen . | . . . . . . . . . . . . . . . . . . . . . . . . . . . . . . . . . . . . . . Parts Stripped . | . . . . . . . . . . . . . . . . . . . . . . . . . . . . . . . . . . . . . . Power Chain Reactions 1 | . . . . . 1 . . . . . . . . . . . . . . . . . . . . . . . . . . . . . . . . Missiles Intercepted . | . . . . . . . . . . . . . . . . . . . . . . . . . . . . . . . . . . . . . . Alert | -11 -10 -10 -10 -9 -8 -7 -7 -7 -7 -6 -6 -6 -6 -6 -6 -6 -5 -5 -5 -5 -5 -5 -5 -4 -4 -4 -4 -4 -4 -4 -3 -3 -3 -2 -2 -2 -1 ------- Run | Scr Mat Min Exi Min Mat Fac Low Low Zio Pro Fac Was Fac Low Low Dat Pro Fac Was Fac Upp Upp Zhi Pro Fac Was Fac Upp Upp War Pro Res Tes Res Qua Sec Acc Peak Influence 4517 | 5 223 111 . 45 453 477 . . . . 491 205 596 . . . . 612 252 1015 . . . . 1120 381 398 . . . . 250 133 164 233 1802 4517 Initial 1100 | . 6 36 . . 15 197 . . . . . 171 143 . . . . 72 207 176 . . . . 6 336 266 . . . . . 53 23 92 82 1100 Average 310 | . 55 60 . 6 197 256 . . . . 81 199 264 . . . . 196 217 319 . . . . 341 351 138 . . . . 95 46 67 121 400 3278 Maximum Alert Level 5 | . 1 . . . 2 2 . . . . 2 1 2 . . . . 2 1 3 . . . . 4 1 1 . . . . 1 . . 1 5 5 Low Security (%) 56 | 100 98 100 . 100 47 29 . . . . 91 21 36 . . . . 69 . 42 . . . . 39 . 76 . . . . 93 100 100 73 40 . Level 1 32 | . 1 . . . 44 67 . . . . . 78 45 . . . . 17 100 39 . . . . 36 100 23 . . . . 6 . . 26 43 . Level 2 5 | . . . . . 8 3 . . . . 8 . 17 . . . . 12 . 4 . . . . 10 . . . . . . . . . . 4 . Level 3 1 | . . . . . . . . . . . . . . . . . . . . 13 . . . . 11 . . . . . . . . . . . . Level 4 . | . . . . . . . . . . . . . . . . . . . . . . . . . 2 . . . . . . . . . . . 1 Level 5 . | . . . . . . . . . . . . . . . . . . . . . . . . . . . . . . . . . . . . . . High Security . | . . . . . . . . . . . . . . . . . . . . . . . . . . . . . . . . . . . . . . Max Security 4 | . . . . . . . . . . . . . . . . . . . . . . . . . . . . . . . . . . . . 10 98 Squads Dispatched 123 | . 2 . . . 7 13 . . . . 3 . 9 . 1 . . 4 . 4 . . . . 5 . 6 . . . . . 8 3 1 11 46 Investigation 21 | . 1 . . . 3 7 . . . . 1 . 2 . . . . 1 . 2 . . . . 1 . . . . . . . . 2 1 . . Extermination 18 | . . . . . . 5 . . . . 1 . 2 . . . . . . 1 . . . . 3 . 2 . . . . . 2 . . 2 . Reinforcement 23 | . 1 . . . 3 1 . . . . 1 . 3 . . . . 1 . 1 . . . . 1 . 1 . . . . . 4 1 . 3 2 Assault 54 | . . . . . . . . . . . . . . . 1 . . 2 . . . . . . . . . . . . . . 2 . . 6 43 Garrison 7 | . . . . . 1 . . . . . . . 2 . . . . . . . . . . . . . 3 . . . . . . . . . 1 Intercept . | . . . . . . . . . . . . . . . . . . . . . . . . . . . . . . . . . . . . . . Construction Impeded 5 | . . . . . 1 . . . . . . . . . . . . 1 . . . . . . 1 . . . . . . . . . . . 2 Haulers Reinforced 5 | . . . . . . 1 . . . . 1 . 1 . . . . . . 1 . . . . . . . . . . . . . 1 . . . Stealth | -11 -10 -10 -10 -9 -8 -7 -7 -7 -7 -6 -6 -6 -6 -6 -6 -6 -5 -5 -5 -5 -5 -5 -5 -4 -4 -4 -4 -4 -4 -4 -3 -3 -3 -2 -2 -2 -1 --------- Run | Scr Mat Min Exi Min Mat Fac Low Low Zio Pro Fac Was Fac Low Low Dat Pro Fac Was Fac Upp Upp Zhi Pro Fac Was Fac Upp Upp War Pro Res Tes Res Qua Sec Acc Distress Signals 30 | . 3 . . . 4 1 . . . . . . 2 . . . . 1 . 3 . . . . 1 . 3 . . . . 4 1 2 . 3 2 Communications Jammed 4 | . . . . . . . . . . . . . . . . . . . . . . . . . . . . . . . . 1 . . . 3 . Distress Signals 1 | . . . . . . . . . . . . . . . . . . . . . . . . . . . . . . . . 1 . . . . . Times Spotted 621 | . 20 5 . 6 51 33 4 1 . 8 12 1 40 8 10 4 4 20 4 32 5 2 . . 25 2 28 . 1 . 1 14 6 23 15 81 155 Peak Tracking Total 41 | . 4 3 . 3 4 5 5 1 . 4 4 1 8 4 9 4 4 10 4 6 5 3 . . 7 2 12 . 1 . 1 9 1 13 10 41 24 Tactical Retreats 85 | . 1 . . . 1 . 2 1 . 2 4 . 8 4 4 . . 5 . 6 2 2 . . 5 . 8 . . . . 4 1 5 3 8 9 Traps | -11 -10 -10 -10 -9 -8 -7 -7 -7 -7 -6 -6 -6 -6 -6 -6 -6 -5 -5 -5 -5 -5 -5 -5 -4 -4 -4 -4 -4 -4 -4 -3 -3 -3 -2 -2 -2 -1 ------- Run | Scr Mat Min Exi Min Mat Fac Low Low Zio Pro Fac Was Fac Low Low Dat Pro Fac Was Fac Upp Upp Zhi Pro Fac Was Fac Upp Upp War Pro Res Tes Res Qua Sec Acc Traps Triggered 22 | . . . . . 1 5 . . . . 3 . 1 . . . . 1 . 1 . . . . 3 . 4 . . . . . . 2 . . 1 Indirectly . | . . . . . . . . . . . . . . . . . . . . . . . . . . . . . . . . . . . . . . Trap Hack Attempts 181 | . 40 . . . 66 . . . . . 5 . . . . . . . . 54 . . . . 16 . . . . . . . . . . . . Triggered 1 | . 1 . . . . . . . . . . . . . . . . . . . . . . . . . . . . . . . . . . . . Disarmed 27 | . . . . . 2 6 . . . . . . . . . . . 12 . 1 . . . . 6 . . . . . . . . . . . . Reprogrammed 64 | . 2 . . . 7 6 . . . . 7 . 12 . . . . 4 . 15 . . . . 5 . . . . . . . . . 6 . . Reused 19 | . . . . . 3 1 1 1 . . 3 . 3 . . . . 1 . 4 . . . . 1 . . . . . . . . . 1 . . Traps Extracted . | . . . . . . . . . . . . . . . . . . . . . . . . . . . . . . . . . . . . . . Installed 17 | . . . . . . . 14 1 . . . . . . . . . . . . . . . 2 . . . . . . . . . . . . . Triggered 26 | . . . . . 3 1 1 1 . . 3 . 3 . . . . 1 . 4 3 . . . 1 . . . . 4 . . . . 1 . . Machines | -11 -10 -10 -10 -9 -8 -7 -7 -7 -7 -6 -6 -6 -6 -6 -6 -6 -5 -5 -5 -5 -5 -5 -5 -4 -4 -4 -4 -4 -4 -4 -3 -3 -3 -2 -2 -2 -1 ---------- Run | Scr Mat Min Exi Min Mat Fac Low Low Zio Pro Fac Was Fac Low Low Dat Pro Fac Was Fac Upp Upp Zhi Pro Fac Was Fac Upp Upp War Pro Res Tes Res Qua Sec Acc Machines Disabled 58 | . 2 . . . . 1 . . . . . . . 1 . 1 . 10 . 1 . 1 . . 14 . . . . . . . 5 . 7 10 5 Max in Single Turn 10 | . 2 . . . . 1 . . . . . . . 1 . 1 . 10 . . . 1 . . 8 . . . . . . . 1 . 1 1 1 Garrison Access 15 | . . . . . 1 1 . . . . 2 . 2 . . . . 1 . 2 . . . . 1 . . . . . . . 1 1 1 1 1 Energy Cycler 1 | . . . . . . . . . . . . . . . . . . . . . . . . . . . . . . . . . . . . . 1 Machines Sabotaged . | . . . . . . . . . . . . . . . . . . . . . . . . . . . . . . . . . . . . . . Garrisons Compromised . | . . . . . . . . . . . . . . . . . . . . . . . . . . . . . . . . . . . . . . Overloaded Fab Kills . | . . . . . . . . . . . . . . . . . . . . . . . . . . . . . . . . . . . . . . Fab Network Shutdowns 4 | . . . . . . . . . . . 1 . 1 . . . . . . 1 . . . . 1 . . . . . . . . . . . . Hacking | -11 -10 -10 -10 -9 -8 -7 -7 -7 -7 -6 -6 -6 -6 -6 -6 -6 -5 -5 -5 -5 -5 -5 -5 -4 -4 -4 -4 -4 -4 -4 -3 -3 -3 -2 -2 -2 -1 --------- Run | Scr Mat Min Exi Min Mat Fac Low Low Zio Pro Fac Was Fac Low Low Dat Pro Fac Was Fac Upp Upp Zhi Pro Fac Was Fac Upp Upp War Pro Res Tes Res Qua Sec Acc Machines Accessed 213 | . 7 . 1 . 15 17 1 1 . 1 21 . 21 1 2 4 . 20 . 16 1 1 4 . 15 . 13 1 . 1 . 5 11 8 14 11 . Terminals 115 | . 5 . . . 8 7 . . . 1 12 . 11 . . . . 12 . 8 . 1 . . 8 . 5 . . . . 4 9 6 10 8 . Fabricators 20 | . . . . . . 3 . . . . 4 . 3 . . . . 5 . 2 . . . . 1 . 2 . . . . . . . . . . Repair Stations 13 | . 1 . . . 2 2 . . . . 2 . . . . . . . . 1 . . . . 1 . 2 . . . . . . . 1 1 . Recycling Units 19 | . 1 . . . 2 3 . . . . 1 . 3 . . . . 1 . 2 . . . . 2 . 2 . . . . 1 . 1 . . . Scanalyzers 11 | . . . . . 2 1 . . . . . . 1 . . . . . . 1 . . . . 1 . 1 . . . . . 1 . 2 1 . Garrison Access 18 | . . . . . 1 1 . . . . 2 . 3 . . . . 2 . 2 . . . . 2 . 1 . . . . . 1 1 1 1 . Total Hacks 659 | . 19 . 1 . 37 58 1 1 . 1 69 . 80 1 10 26 . 48 . 51 1 1 17 . 53 . 46 1 . 5 . 23 25 27 38 19 . Successful 496 | . 9 . 1 . 19 40 1 1 . 1 43 . 60 1 10 26 . 42 . 39 1 1 17 . 47 . 34 1 . 5 . 16 18 17 30 16 . Failed 159 | . 10 . . . 18 18 . . . . 25 . 19 . . . . 5 . 11 . . . . 6 . 12 . . . . 7 7 10 8 3 . Catastrophic 19 | . . . . . 3 3 . . . . 4 . 1 . . . . . . 2 . . . . . . 1 . . . . 2 1 2 . . . Database Lockouts 4 | . . . . . . . . . . . 1 . 1 . . . . 1 . 1 . . . . . . . . . . . . . . . . . Manual 306 | . 16 . . . 18 20 . . . . 37 . 46 . . . . 25 . 26 . . . . 30 . 19 . . . . 18 16 13 14 8 . Terminals 370 | . 15 . . . 19 27 . . . 1 46 . 54 . . . . 25 . 27 . 1 . . 30 . 18 . . . . 20 23 23 27 14 . Fabricators 87 | . . . . . . 16 . . . . 13 . 10 . . . . 18 . 11 . . . . 13 . 6 . . . . . . . . . . Repair Stations 37 | . 2 . . . 5 4 . . . . 6 . . . . . . . . 2 . . . . 2 . 10 . . . . . . . 4 2 . Recycling Units 40 | . 2 . . . 4 5 . . . . 2 . 6 . . . . 3 . 4 . . . . 4 . 5 . . . . 3 . 2 . . . Scanalyzers 29 | . . . . . 6 3 . . . . . . 3 . . . . . . 4 . . . . 1 . 5 . . . . . 1 . 4 2 . Garrison Access 32 | . . . . . 3 3 . . . . 2 . 7 . . . . 2 . 3 . . . . 3 . 2 . . . . . 1 2 3 1 . Terminal Hacks 240 | . 3 . 1 . 5 13 1 1 . 1 20 . 27 1 10 26 . 17 . 10 1 1 17 . 15 . 8 1 . 5 . 9 12 10 18 7 . Record 29 | . . . 1 . . . . . . 1 . . . . 9 11 . . . . . 1 5 . . . . . . . . . . . 1 . . Part Schematic 27 | . 1 . . . 1 1 . . . . 4 . 1 . . 7 . 1 . 1 . . 4 . 5 . . . . . . . . 1 . . . Robot Schematic 8 | . . . . . . 1 . . . . 2 . . . . 5 . . . . . . . . . . . . . . . . . . . . . Robot Analysis 10 | . 2 . . . 1 . . . . . 1 . . . . . . . . . . . 4 . . . . . . . . . 1 . 1 . . Prototype ID Bank 24 | . . . . . 1 1 . . . . 1 . 3 . . 3 . 4 . 1 . . 4 . 1 . . . . 5 . . . . . . . Open Door 11 | . . . . . . . 1 1 . . . . . 1 1 . . . . . 1 . . . . . . 1 . . . . . . 1 4 . Level Access Points 1 | . . . . . . . . . . . . . . . . . . . . . . . . . . . . . . . . . 1 . . . . Branch Access Points 8 | . . . . . . 1 . . . . 1 . 1 . . . . 2 . 1 . . . . . . 1 . . . . . . 1 . . . Machine Index 5 | . . . . . . . . . . . . . . . . . . . . . . . . . 1 . 1 . . . . 1 1 1 . . . Terminal Index 5 | . . . . . . . . . . . 1 . 1 . . . . . . 1 . . . . . . . . . . . . . 1 1 . . Fabricator Index 3 | . . . . . . . . . . . 1 . 1 . . . . . . 1 . . . . . . . . . . . . . . . . . Scanalyzer Index 1 | . . . . . . . . . . . . . . . . . . . . 1 . . . . . . . . . . . . . . . . . Garrison Index 4 | . . . . . . . . . . . 1 . 1 . . . . . . 1 . . . . . . . . . . . . . . . 1 . Alert Level 5 | . . . . . . . . . . . . . . . . . . . . 1 . . . . . . . . . . . 2 . 1 1 . . Unreport Threat 28 | . . . . . 2 3 . . . . 1 . 6 . . . . . . . . . . . 3 . 2 . . . . 2 1 3 4 1 . Locate Traps 14 | . . . . . . 2 . . . . 1 . 2 . . . . 1 . . . . . . 1 . . . . . . . . 1 6 . . Disarm Traps 4 | . . . . . . 1 . . . . . . . . . . . 2 . . . . . . 1 . . . . . . . . . . . . Reprogram Traps 8 | . . . . . . 1 . . . . 2 . 3 . . . . 1 . . . . . . . . . . . . . . . . 1 . . Maintenance Status 1 | . . . . . . . . . . . . . 1 . . . . . . . . . . . . . . . . . . . . . . . . Extermination Status 1 | . . . . . . . . . . . . . . . . . . . . . . . . . . . . . . . . . . 1 . . . Recall Investigation 2 | . . . . . . . . . . . 1 . 1 . . . . . . . . . . . . . . . . . . . . . . . . Recall Extermination 7 | . . . . . . 1 . . . . . . 2 . . . . . . . . . . . 2 . 1 . . . . . 1 . . . . Recall Reinforcements 5 | . . . . . . . . . . . . . 1 . . . . 1 . . . . . . . . 1 . . . . . 2 . . . . Hauler Manifests 4 | . . . . . . 1 . . . . . . . . . . . 1 . . . . . . . . . . . . . 1 . . 1 . . Registered Components 6 | . . . . . . . . . . . 1 . 1 . . . . . . 1 . . . . 1 . 1 . . . . 1 . . . . . Registered Prototypes 7 | . . . . . . . . . . . 1 . 1 . . . . 1 . 1 . . . . . . 1 . . . . 1 . . 1 . . Zone Layout 7 | . . . . . . . . . . . 1 . 1 . . . . 3 . . . . . . . . . . . . . 1 1 . . . . Protovariant Controls 4 | . . . . . . . . . . . . . . . . . . . . . . . . . . . . . . . . . 4 . . . . Activate Exoskeleton 1 | . . . . . . . . . . . . . . . . . . . . . . . . . . . . . . . . . . . . 1 . Fabricator Hacks 49 | . . . . . . 8 . . . . 6 . 5 . . . . 11 . 6 . . . . 10 . 3 . . . . . . . . . . Load Schematic 22 | . . . . . . 3 . . . . 3 . 2 . . . . 6 . 3 . . . . 3 . 2 . . . . . . . . . . Build 27 | . . . . . . 5 . . . . 3 . 3 . . . . 5 . 3 . . . . 7 . 1 . . . . . . . . . . Repair Station Hacks 31 | . 2 . . . 2 4 . . . . 4 . . . . . . . . 2 . . . . 2 . 9 . . . . . . . 4 2 . Scan Component 15 | . 1 . . . 1 2 . . . . 1 . . . . . . . . 1 . . . . 1 . 5 . . . . . . . 2 1 . Repair 14 | . 1 . . . 1 2 . . . . 1 . . . . . . . . 1 . . . . 1 . 4 . . . . . . . 2 1 . Refit 2 | . . . . . . . . . . . 2 . . . . . . . . . . . . . . . . . . . . . . . . . . Recycling Unit Hacks 17 | . 1 . . . 1 2 . . . . 1 . 3 . . . . 1 . 2 . . . . 2 . 2 . . . . 1 . 1 . . . Process 1 | . . . . . . 1 . . . . . . . . . . . . . . . . . . . . . . . . . . . . . . . Retrieve Components 16 | . 1 . . . 1 1 . . . . 1 . 3 . . . . 1 . 2 . . . . 2 . 2 . . . . 1 . 1 . . . Scanalyzer 24 | . . . . . 6 3 . . . . . . 3 . . . . . . 4 . . . . 1 . 3 . . . . . . . 4 . . Insert Component 12 | . . . . . 3 1 . . . . . . 1 . . . . . . 1 . . . . 1 . 1 . . . . . . . 4 . . Analyze 12 | . . . . . 3 2 . . . . . . 2 . . . . . . 3 . . . . . . 2 . . . . . . . . . . Garrison Access Hacks 13 | . . . . . . 1 . . . . 2 . 2 . . . . 1 . 2 . . . . 1 . . . . . . . 1 1 1 1 . Seal Access 13 | . . . . . . 1 . . . . 2 . 2 . . . . 1 . 2 . . . . 1 . . . . . . . 1 1 1 1 . Unauthorized Hacks 122 | . 3 . . . 5 9 . . . . 10 . 20 . . . . 12 . 13 . . . . 16 . 9 . . . . 6 5 5 3 6 . Terminals 78 | . 2 . . . 3 2 . . . . 9 . 12 . . . . 4 . 9 . . . . 10 . 5 . . . . 5 4 5 3 5 . Track 19 | . . . . . . . . . . . 4 . 1 . . . . . . 3 . . . . 3 . 2 . . . . . 1 2 1 2 . Assimilate 20 | . 1 . . . . . . . . . 1 . 5 . . . . 1 . 2 . . . . 3 . 1 . . . . 3 1 1 . 1 . Botnet 25 | . 1 . . . 2 1 . . . . 3 . 2 . . . . 2 . 3 . . . . 2 . 2 . . . . . 2 1 2 2 . Detonate 1 | . . . . . . . . . . . . . . . . . . . . . . . . . 1 . . . . . . . . . . . . Disrupt 5 | . . . . . . . . . . . . . 3 . . . . . . . . . . . . . . . . . . 1 . 1 . . . Operators 7 | . . . . . 1 . . . . . 1 . 1 . . . . 1 . 1 . . . . 1 . . . . . . 1 . . . . . Search 1 | . . . . . . 1 . . . . . . . . . . . . . . . . . . . . . . . . . . . . . . . Fabricators 20 | . . . . . . 4 . . . . . . 4 . . . . 6 . 2 . . . . 3 . 1 . . . . . . . . . . Report 3 | . . . . . . 1 . . . . . . . . . . . 1 . . . . . . 1 . . . . . . . . . . . . Prioritize 3 | . . . . . . 1 . . . . . . . . . . . . . 1 . . . . 1 . . . . . . . . . . . . Siphon 12 | . . . . . . 2 . . . . . . 2 . . . . 5 . 1 . . . . 1 . 1 . . . . . . . . . . Haulers 1 | . . . . . . . . . . . . . 1 . . . . . . . . . . . . . . . . . . . . . . . . Download 1 | . . . . . . . . . . . . . 1 . . . . . . . . . . . . . . . . . . . . . . . . Repair Stations . | . . . . . . . . . . . . . . . . . . . . . . . . . . . . . . . . . . . . . . Recycling Units 12 | . 1 . . . . 1 . . . . 1 . 2 . . . . 1 . 2 . . . . 2 . 1 . . . . 1 . . . . . Recyclers 1 | . . . . . . . . . . . . . 1 . . . . . . . . . . . . . . . . . . . . . . . . Mask 10 | . . . . . . 1 . . . . 1 . 1 . . . . 1 . 2 . . . . 2 . 1 . . . . 1 . . . . . Tunnel 1 | . 1 . . . . . . . . . . . . . . . . . . . . . . . . . . . . . . . . . . . . Scanalyzers 2 | . . . . . . . . . . . . . . . . . . . . . . . . . . . . . . . . . 1 . . 1 . Researchers 2 | . . . . . . . . . . . . . . . . . . . . . . . . . . . . . . . . . 1 . . 1 . Garrison Access 10 | . . . . . 2 2 . . . . . . 2 . . . . 1 . . . . . . 1 . 2 . . . . . . . . . . Reprogram 9 | . . . . . 1 2 . . . . . . 2 . . . . 1 . . . . . . 1 . 2 . . . . . . . . . . Jam 1 | . . . . . 1 . . . . . . . . . . . . . . . . . . . . . . . . . . . . . . . . Data Cores Recovered 1 | . 1 . . . . . . . . . . . . . . . . . . . . . . . . . . . . . . . . . . . . Used 1 | . 1 . . . . . . . . . . . . . . . . . . . . . . . . . . . . . . . . . . . . Hacking Detections 136 | . 6 . . . 10 13 . . . . 16 . 15 . . . . 11 . 13 . . . . 10 . 9 . . . . 3 8 7 10 5 . Full Trace Events 14 | . . . . . 2 5 . . . . 1 . 1 . . . . 1 . 2 . . . . 1 . . . . . . . . . 1 . . Feedback Events 1 | . . . . . 1 . . . . . . . . . . . . . . . . . . . . . . . . . . . . . . . . Corruption 1 | . . . . . 1 . . . . . . . . . . . . . . . . . . . . . . . . . . . . . . . . Feedback Blocked . | . . . . . . . . . . . . . . . . . . . . . . . . . . . . . . . . . . . . . . Robot Schematics Acquired 8 | . . . . . . 1 . . . . 2 . . . . 5 . . . . . . . . . . . . . . . . . . . . . Robots Built 8 | . . . . . . 4 . . . . . . . . . . . . . 4 . . . . . . . . . . . . . . . . . Matter 934 | . . . . . . 378 . . . . . . . . . . . . . 556 . . . . . . . . . . . . . . . . . Time 426 | . . . . . . 201 . . . . . . . . . . . . . 225 . . . . . . . . . . . . . . . . . Total Robot Build Rating 40 | . . . . . . 16 . . . . . . . . . . . . . 24 . . . . . . . . . . . . . . . . . Part Schematics Acquired 34 | . 1 . . . 4 2 . . . . 4 . 3 . . 7 . 1 . 1 . . 4 . 5 . 1 . . . . . . 1 . . . Parts Built 21 | . . . . . . 2 . . . . 3 . 3 . . . . 6 . 1 . . . . 5 . 1 . . . . . . . . . . Matter 4429 | . . . . . . 378 . . . . 716 . 477 . . . . 899 . 318 . . . . 1290 . 351 . . . . . . . . . . Time 1460 | . . . . . . 109 . . . . 150 . 265 . . . . 268 . 56 . . . . 550 . 62 . . . . . . . . . . Total Part Build Rating 115 | . . . . . . 8 . . . . 13 . 18 . . . . 29 . 6 . . . . 34 . 7 . . . . . . . . . . Parts Repaired 13 | . 1 . . . 1 2 . . . . 1 . . . . . . . . 1 . . . . . . 4 . . . . . . . 2 1 . Time 466 | . 26 . . . 53 42 . . . . 38 . . . . . . . . 34 . . . . 31 . 168 . . . . . . . 40 34 . Parts Recycled . | . . . . . . . . . . . . . . . . . . . . . . . . . . . . . . . . . . . . . . Recycled Matter 74 | . . . . . . 74 . . . . . . . . . . . . . . . . . . . . . . . . . . . . . . . Retrieved Matter . | . . . . . . . . . . . . . . . . . . . . . . . . . . . . . . . . . . . . . . Retrieved Components 52 | . 10 . . . 9 9 . . . . . . 10 . . . . 3 . 2 . . . . 7 . 2 . . . . . . . . . . Parts Scanalyzed 7 | . . . . . 3 1 . . . . . . 1 . . . . . . 1 . . . . . . 1 . . . . . . . . . . Part Schematics Acquired 6 | . . . . . 3 1 . . . . . . 1 . . . . . . . . . . . . . 1 . . . . . . . . . . Parts Damaged 2 | . . . . . 1 . . . . . . . . . . . . . . . . . . . . . 1 . . . . . . . . . . Bothacking | -11 -10 -10 -10 -9 -8 -7 -7 -7 -7 -6 -6 -6 -6 -6 -6 -6 -5 -5 -5 -5 -5 -5 -5 -4 -4 -4 -4 -4 -4 -4 -3 -3 -3 -2 -2 -2 -1 ------------ Run | Scr Mat Min Exi Min Mat Fac Low Low Zio Pro Fac Was Fac Low Low Dat Pro Fac Was Fac Upp Upp Zhi Pro Fac Was Fac Upp Upp War Pro Res Tes Res Qua Sec Acc Used RIF Installer . | . . . . . . . . . . . . . . . . . . . . . . . . . . . . . . . . . . . . . . Robots Hacked 2 | . . . . . . . . . . . . . . . . . . 1 . . . . . . 1 . . . . . . . . . . . . Non-combat 2 | . . . . . . . . . . . . . . . . . . 1 . . . . . . 1 . . . . . . . . . . . . Combat . | . . . . . . . . . . . . . . . . . . . . . . . . . . . . . . . . . . . . . . Robot Hacks Applied 2 | . . . . . . . . . . . . . . . . . . 1 . . . . . . 1 . . . . . . . . . . . . find_chute 2 | . . . . . . . . . . . . . . . . . . 1 . . . . . . 1 . . . . . . . . . . . . Relay Couplers Released 5 | . . . . . . . . . . . . . . . . . . 4 . . . . . . . . . . . . . . . . . . 1 Machine Destruction 1 | . . . . . . . . . . . . . . . . . . . . . . . . . . . . . . . . . . . . . 1 Programmers 4 | . . . . . . . . . . . . . . . . . . 4 . . . . . . . . . . . . . . . . . . . Robots Rewired 10 | . 1 . . . . . . . . . . . . . 2 . . . . . . 2 . . 2 . . . . 3 . . . . . . . Allies Hacked 5 | . . . . . . . . . . . . . . . . . . 3 . 2 . . . . . . . . . . . . . . . . . Hacks Repelled . | . . . . . . . . . . . . . . . . . . . . . . . . . . . . . . . . . . . . . . Allies | -11 -10 -10 -10 -9 -8 -7 -7 -7 -7 -6 -6 -6 -6 -6 -6 -6 -5 -5 -5 -5 -5 -5 -5 -4 -4 -4 -4 -4 -4 -4 -3 -3 -3 -2 -2 -2 -1 -------- Run | Scr Mat Min Exi Min Mat Fac Low Low Zio Pro Fac Was Fac Low Low Dat Pro Fac Was Fac Upp Upp Zhi Pro Fac Was Fac Upp Upp War Pro Res Tes Res Qua Sec Acc Total Allies 76 | . 2 . . . 2 6 . . 3 . 1 20 5 . 2 . . 5 . 8 . 2 . . 5 1 2 . . 3 . 3 1 1 . 1 3 Largest Group 20 | . 2 1 1 1 2 5 4 . 3 3 1 20 3 . 2 2 . 3 . 4 1 2 2 2 3 1 1 . . 3 . 3 1 1 . 1 1 Highest-Rated Group 1075 | . 18 10 10 10 32 156 118 . 81 81 10 814 76 . 59 59 . 152 . 191 54 62 62 62 118 46 49 . . 154 . 78 26 44 . 1075 1075 Highest-Rated Ally 1075 | . 10 10 10 10 16 38 38 . 31 31 10 50 32 . 30 30 . 91 . 54 54 31 31 31 49 46 49 . . 56 . 44 26 44 . 1075 1075 Total Orders 38 | . 11 4 . . . . . . . 2 . . . . . 5 . . . 2 . . . 1 9 . . . . 2 . . 2 . . . . STAY 22 | . 7 2 . . . . . . . . . . . . . 4 . . . 1 . . . 1 5 . . . . 1 . . 1 . . . . FOLLOW 14 | . 4 2 . . . . . . . . . . . . . 1 . . . 1 . . . . 4 . . . . 1 . . 1 . . . . EXPLORE 2 | . . . . . . . . . . 2 . . . . . . . . . . . . . . . . . . . . . . . . . . . Ally Attacks 331 | . 6 . . . 7 14 15 . . 10 . 12 30 . . 8 . 10 . 41 1 . . 6 10 4 4 . . 7 . . . . . 11 135 Total Damage 12616 | . 40 . . . 44 547 486 . . 330 . 242 645 . . 113 . 349 . 1484 25 . . 160 284 120 253 . . 377 . . . . . 649 6468 Kills 65 | . . . . . 2 2 3 . . 2 . 2 7 . . . . 4 . 14 . . . 1 3 . 1 . . 3 . . . . . 2 19 Allies Corrupted 3 | . . . . . . . . . . . . . . . . . . . . . . . . 1 1 . 1 . . . . . . . . . . Allies Melted . | . . . . . . . . . . . . . . . . . . . . . . . . . . . . . . . . . . . . . . Intel | -11 -10 -10 -10 -9 -8 -7 -7 -7 -7 -6 -6 -6 -6 -6 -6 -6 -5 -5 -5 -5 -5 -5 -5 -4 -4 -4 -4 -4 -4 -4 -3 -3 -3 -2 -2 -2 -1 ------- Run | Scr Mat Min Exi Min Mat Fac Low Low Zio Pro Fac Was Fac Low Low Dat Pro Fac Was Fac Upp Upp Zhi Pro Fac Was Fac Upp Upp War Pro Res Tes Res Qua Sec Acc Robot Analysis Total 10 | . 2 . . . 1 . . . . . 1 . . . . . . . . . . . 4 . . . . . . . . . 1 . 1 . . Derelict Logs Recovered 20 | . . 1 . . . . 1 1 2 1 . . . 3 2 . 3 . . . 1 3 . 2 . . . . . . . . . . . . . Drone Launches 2 | . . . . . . . . . . 2 . . . . . . . . . . . . . . . . . . . . . . . . . . . Drone Recoveries . | . . . . . . . . . . . . . . . . . . . . . . . . . . . . . . . . . . . . . . Exploration | -11 -10 -10 -10 -9 -8 -7 -7 -7 -7 -6 -6 -6 -6 -6 -6 -6 -5 -5 -5 -5 -5 -5 -5 -4 -4 -4 -4 -4 -4 -4 -3 -3 -3 -2 -2 -2 -1 ------------- Run | Scr Mat Min Exi Min Mat Fac Low Low Zio Pro Fac Was Fac Low Low Dat Pro Fac Was Fac Upp Upp Zhi Pro Fac Was Fac Upp Upp War Pro Res Tes Res Qua Sec Acc Turns Passed 25679 | 111 1714 649 365 281 3787 3211 601 409 374 413 1098 151 1152 600 533 80 270 905 22 1104 472 544 127 362 1533 23 633 149 160 243 408 233 668 315 571 688 720 Spaces Moved 34811 | 57 863 335 197 109 1606 2215 1052 756 938 470 2339 334 2336 1294 1209 104 632 1975 83 2276 1034 925 230 561 2981 79 1273 467 457 559 627 363 1066 640 978 1092 299 Core 61 | 3 . . . 1 . . . . . . . . . . . . . . . . . . . . . . . . . . . . . . . . 57 Treads 3872 | 54 863 335 197 88 1277 1058 . . . . . . . . . . . . . . . . . . . . . . . . . . . . . . . Legs 478 | . . . . . 247 . . . . . . . . . . . . . . . . . . . . . . . . . . . . . . . 231 Wheels 102 | . . . . 20 82 . . . . . . . . . . . . . . . . . . . . . . . . . . . . . . . . Hover . | . . . . . . . . . . . . . . . . . . . . . . . . . . . . . . . . . . . . . . Flight 30298 | . . . . . . 1157 1052 756 938 470 2339 334 2336 1294 1209 104 632 1975 83 2276 1034 925 230 561 2981 79 1273 467 457 559 627 363 1066 640 978 1092 11 Fastest Speed 20 | 50 160 180 180 110 120 26 28 28 28 21 21 28 23 23 26 23 23 20 24 24 29 29 29 29 23 23 23 23 23 23 23 23 23 22 22 23 23 Average Speed 44 | 154 163 180 180 180 176 94 28 28 28 30 28 28 27 25 26 25 25 25 24 26 29 29 29 29 26 23 24 23 23 23 23 23 25 22 22 23 112 Slowest Speed 1150 | 160 180 180 180 1150 210 190 28 103 28 103 103 29 100 26 26 91 26 27 24 29 29 29 37 29 29 23 110 23 23 23 23 23 106 26 23 23 175 Overloaded Moves 107 | . . . . . . . . . . 12 1 . 36 14 . 23 7 14 . . . . . . . . . . . . . . . . . . . Propulsion Burnouts . | . . . . . . . . . . . . . . . . . . . . . . . . . . . . . . . . . . . . . . Robots Hopped 109 | . . . . . . 6 . . . . 12 1 12 . 2 . . 8 . 12 . 1 . . 16 . 3 . 1 1 . 1 2 16 . 15 . Cave-ins Triggered 1 | . . . . 1 . . . . . . . . . . . . . . . . . . . . . . . . . . . . . . . . . Teleports 2 | . . . . . . . . . . . . . . . . . . . . . . . . . . . . . . . . . . . . . 2 Exploration Rate (%) 62 | 5 98 50 54 31 87 47 93 85 84 73 45 95 48 95 95 76 80 42 87 39 87 85 60 60 38 59 31 66 59 70 61 19 66 25 80 75 13 Regions Visited 37 Branch Regions 22 Pre-discovered Areas 15 | . 1 1 1 . . . . . 4 . . . . 1 2 1 . . . . . 1 3 . . . . . . . . . . . . . . Known Exits Taken 25 | . . . . . . 1 1 1 1 1 . . 1 1 1 1 1 . . 1 1 1 1 1 . . 1 1 1 1 1 1 1 1 1 1 . Unknown Exits Taken 6 | 1 1 1 1 1 1 . . . . . . . . . . . . . . . . . . . . . . . . . . . . . . . . Scrap Searched 37 | . . . . 1 . . 4 4 3 3 . . . 4 3 . . . . . 3 2 . 2 . . . 5 2 . 1 . . . . . . Spaces Dug 365 | . . 5 . . 2 7 . 5 . 16 44 . 53 5 12 5 17 24 . 11 1 6 . 7 21 . 24 . 3 1 14 23 14 12 23 10 . Terrain Destroyed 1246 | . 21 5 . 1 7 51 . 5 . 50 44 . 53 19 12 5 60 66 . 11 82 55 . 7 224 . 24 . 48 1 91 23 14 12 72 10 173 Melee 233 | . . . . . 2 7 . 3 . 6 27 . 35 4 12 2 8 14 . 11 1 4 . 2 20 . 14 . 1 1 6 14 12 10 9 8 . Projectile 131 | . . . . 1 . . . 2 . 10 17 . 18 2 . 3 9 10 . . . 2 . 5 1 . 10 . 2 . 8 9 2 2 14 2 2 AOE 882 | . 21 5 . . 5 44 . . . 34 . . . 13 . . 43 42 . . 81 49 . . 203 . . . 45 . 77 . . . 49 . 171 Terrain Rammed . | . . . . . . . . . . . . . . . . . . . . . . . . . . . . . . . . . . . . . . Walls Destroyed . | . . . . . . . . . . . . . . . . . . . . . . . . . . . . . . . . . . . . . . Machines Disabled . | . . . . . . . . . . . . . . . . . . . . . . . . . . . . . . . . . . . . . . Actions | -11 -10 -10 -10 -9 -8 -7 -7 -7 -7 -6 -6 -6 -6 -6 -6 -6 -5 -5 -5 -5 -5 -5 -5 -4 -4 -4 -4 -4 -4 -4 -3 -3 -3 -2 -2 -2 -1 --------- Run | Scr Mat Min Exi Min Mat Fac Low Low Zio Pro Fac Was Fac Low Low Dat Pro Fac Was Fac Upp Upp Zhi Pro Fac Was Fac Upp Upp War Pro Res Tes Res Qua Sec Acc Total 42845 | 72 1085 374 208 155 2338 3198 1348 943 1050 712 2691 386 2730 1498 1350 142 696 2244 84 2668 1163 1160 287 739 3567 83 1542 497 490 662 828 476 1422 753 1282 1398 524 Wait 5560 | 2 103 21 6 10 424 757 240 177 103 200 232 47 289 132 79 27 27 134 . 257 91 194 35 148 433 3 196 23 16 86 139 82 294 78 239 218 18 Move 34575 | 57 862 334 196 108 1605 2203 1051 755 937 469 2315 331 2311 1293 1204 103 631 1959 82 2253 1033 922 229 560 2951 78 1266 466 454 556 626 360 1061 611 977 1067 299 Hop 94 | . . . . . . 5 . . . . 12 1 12 . 2 . . 8 . 10 . 1 . . 14 . 3 . 1 1 . 1 2 12 . 9 . Pick Up 172 | 4 15 3 2 . 29 16 14 1 2 3 3 1 4 5 . . . 3 1 5 . 1 3 2 7 2 3 . . 1 . 1 12 8 4 6 11 Fast Attach 135 | 7 1 . . 3 15 19 2 . 2 1 6 3 2 3 . . . 3 . 2 . . 7 . 7 . 5 . 1 . . . 5 . 7 14 20 Attach 65 | . 3 . . 7 7 9 . . 1 1 1 . . . . . . 2 . 2 . . 1 . 2 . 1 . . . . 2 2 5 . 4 15 Detach 41 | . 1 . . . 10 6 . . 2 . 2 . . . . . . 2 . 1 . . 1 . 3 . . . . . . 1 1 . 4 2 5 Swap 295 | . 8 3 2 2 18 33 . 2 . 12 18 . 14 7 3 2 8 18 . 13 5 9 1 13 19 . 14 2 6 6 15 4 5 2 6 13 12 Drop 227 | . 4 4 2 . 21 51 16 2 3 4 12 3 6 4 . . . 7 1 6 . 1 8 2 7 . 1 . . 2 . . 15 7 6 10 22 Fire 864 | 2 45 7 . 25 134 71 . 2 . 13 20 . 22 50 34 3 18 79 . 11 26 25 . 5 51 . 16 . 5 . 38 9 4 2 24 3 120 Melee 561 | . . . . . 2 27 11 3 . 9 42 . 70 4 28 7 12 29 . 53 8 7 2 7 54 . 19 6 7 10 10 16 21 28 15 52 2 Ram . | . . . . . . . . . . . . . . . . . . . . . . . . . . . . . . . . . . . . . . Kick . | . . . . . . . . . . . . . . . . . . . . . . . . . . . . . . . . . . . . . . Crush 10 | . . 2 . . 7 1 . . . . . . . . . . . . . . . . . . . . . . . . . . . . . . . Escape Stasis 44 | . . . . . . . . . . . 23 . . . . . . . . . . . . . 3 . 18 . . . . . . . . . . Rewire 4 | . 3 . . . . . . . . . . . . . . . . . . 1 . . . . . . . . . . . . . . . . . Trap 198 | . 40 . . . 66 . 14 1 . . 5 . . . . . . . . 54 . . . 2 16 . . . . . . . . . . . . Miscellaneous . | . . . . . . . . . . . . . . . . . . . . . . . . . . . . . . . . . . . . . . Route ------- -11/Scrapyard -10/Materials (discovered 4 exits: [*Mat x3] / [*Min]) -10/Mines (discovered 2 exits: [*Mat] / *Exi) -10/Exiles -9/Mines -8/Materials (discovered 3 exits: *Fac x3) -7/Factory (discovered 3 exits: *Fac / *Low x2) -7/Lower Caves -7/Lower Caves (discovered 2 exits: *Fac / *Zio) -7/Zion -6/Proximity Caves -6/Factory (discovered 5 exits: Fac / Low x2 / *Ext x2) -6/Waste -6/Factory (discovered 6 exits: *Fac x2 / *Low x2 / *Ext x2) -6/Lower Caves -6/Lower Caves (discovered 2 exits: *Fac / *Dat) -6/Data Miner -5/Proximity Caves -5/Factory (discovered 6 exits: *Fac x4 / *Upp x2) -5/Waste -5/Factory (discovered 2 exits: *Upp x2) -5/Upper Caves -5/Upper Caves (discovered 2 exits: *Fac / *Zhi) -5/Zhirov -4/Proximity Caves -4/Factory (discovered 4 exits: *Res x2 / *Upp x2) -4/Waste -4/Factory (discovered 2 exits: *Upp x2) -4/Upper Caves -4/Upper Caves -4/Warlord -3/Proximity Caves -3/Research (discovered 5 exits: *Res x2 / *Arm / *Tes x2) -3/Testing -2/Research (discovered 3 exits: Acc / *Qua x2) -2/Quarantine (discovered 2 exits: *Acc / *Sec) -2/Section 7 -1/Access History --------- Turn | Location | Event 67 | -11/Scrapyard | Discovered new exit (range 14) 112 | -11/Scrapyard | Entered Materials 300 | -10/Materials | Build established: Mutant 325 | -10/Materials | Discovered new exit (range 3) 819 | -10/Materials | Discovered new exit (range 12) 860 | -10/Materials | Repaired Lgt. Treads 932 | -10/Materials | Discovered new exit (range 16) 1091 | -10/Materials | Discovered new exit (range 15) 1826 | -10/Materials | Entered Mines 1826 | -10/Mines | Accompanied by 1 ally 1827 | -10/Mines | Learned location of Storage (-9) 1868 | -10/Mines | Learned Materials non-interactive machine intel 1911 | -10/Mines | Deemed a non-threat by the Exiles lab entrance 1913 | -10/Mines | Discovered new exit (range 5) 2167 | -10/Mines | Joined a pair of Derelicts in attacking an 0b10 outpost 2320 | -10/Mines | Discovered new exit (range 5) 2475 | -10/Mines | Entered Exiles 2475 | -10/Exiles | Accompanied by 1 ally 2522 | -10/Exiles | Met 8R-AWN 2551 | -10/Exiles | Met EX-HEX 2674 | -10/Exiles | Met EX-DEC 2704 | -10/Exiles | Learned location of Zion (-7) 2809 | -10/Exiles | Discovered new exit (range 14) 2840 | -10/Exiles | Entered Mines 2840 | -9/Mines | Accompanied by 1 ally 2913 | -9/Mines | Build established: Hauler-Mutant 2969 | -9/Mines | Assembled infested the area 2993 | -9/Mines | Core integrity fell below 50% 3102 | -9/Mines | Crushed by falling debris 3102 | -9/Mines | Core integrity fell below 20% 3115 | -9/Mines | Discovered new exit (range 5) 3121 | -9/Mines | Entered Materials 3121 | -8/Materials | Evolved 4 slots: Propulsion x1, Utility x3 3122 | -8/Materials | Loaded intel: 44 non-interactive machine locations 3133 | -8/Materials | Lost 12 parts (3p4n5w) 3621 | -8/Materials | Garrison activated, responded to threat 3842 | -8/Materials | Build established: Scavenger-Mutant 4270 | -8/Materials | Build established: Hauler-Mutant 4975 | -8/Materials | Discovered new exit (range 15) 5883 | -8/Materials | Discovered new exit (range 3) 6185 | -8/Materials | Discovered new exit (range 13) 6263 | -8/Materials | Repaired Broken Adv. Sensor Array? 6908 | -8/Materials | Entered Factory 6908 | -7/Factory | Evolved 2 slots: Power x1, Propulsion x1 7129 | -7/Factory | Repaired Arm. Treads 7264 | -7/Factory | Build established: Hacker-Mutant 8095 | -7/Factory | Repaired Enh. Autogun 8195 | -7/Factory | Discovered new exit (range 16) 9090 | -7/Factory | Fabricated Cld. VTOL Module? 9332 | -7/Factory | Identified exit to Lower Caves 9343 | -7/Factory | Discovered new exit (range 13) 9346 | -7/Factory | Identified exit to Factory 9405 | -7/Factory | Build established: Hacker-Sprinter 9466 | -7/Factory | Fabricated Lrn. Sensor Array (x1) 9728 | -7/Factory | Fabricated P-60 Hacker (x2) 9987 | -7/Factory | Fabricated P-60 Hacker? 10119 | -7/Factory | Entered Lower Caves 10119 | -7/Lower Caves | Accompanied by 4 allies 10679 | -7/Lower Caves | Discovered new exit (range 7) 10680 | -7/Lower Caves | Identified exit to Lower Caves 10720 | -7/Lower Caves | Entered another Lower Caves area 10724 | -7/Lower Caves | Discovered exit to Factory (range 13) 10760 | -7/Lower Caves | Spotted B-75 Beast 10870 | -7/Lower Caves | Encountered a Warlord checkpoint 10886 | -7/Lower Caves | Learned Factory security intel 11082 | -7/Lower Caves | Discovered new exit (range 11) 11129 | -7/Lower Caves | Identified exit to Zion 11129 | -7/Lower Caves | Entered Zion 11133 | -7/Zion | Given the Hacking Drone Bay 11143 | -7/Zion | Acquired unknown access codes intercepted by a Zionite 11145 | -7/Zion | Discovered new exit (range 16) 11195 | -7/Zion | Learned location of Extension (-6) 11218 | -7/Zion | Found Prototype Device 11218 | -7/Zion | Identified Phasing AFG 11275 | -7/Zion | Learned Factory stockpile data 11301 | -7/Zion | Learned location of Data Miner (-6) 11305 | -7/Zion | Gained Derelict followers 11327 | -7/Zion | Learned location of Armory (-3) 11354 | -7/Zion | Identified exit to Proximity Caves 11503 | -7/Zion | Entered Proximity Caves 11503 | -6/Proximity Caves | Accompanied by 3 allies 11912 | -6/Proximity Caves | Discovered exit to Factory (range 5) 11915 | -6/Proximity Caves | Learned 12 Factory zone layouts 11916 | -6/Proximity Caves | Entered Factory 11916 | -6/Factory | Evolved 2 slots: Utility x2 11917 | -6/Factory | Identified exit to Extension 11918 | -6/Factory | Identified exit to Factory 11918 | -6/Factory | Identified exit to Lower Caves 11998 | -6/Factory | Repaired Lgt. Deuterium Engine 12144 | -6/Factory | Fabricated Hacking Suite (x1) 12465 | -6/Factory | Fabricated Exp. Sensor Array (x1) 12529 | -6/Factory | Central database locked down 12543 | -6/Factory | Fabricated Exp. Signal Interpreter? 12918 | -6/Factory | Local fabrication network quarantined 13014 | -6/Factory | Manually triggered Chute Trap 13014 | -6/Factory | Sucked down chute 13014 | -6/Factory | Entered Waste 13015 | -6/Waste | Joined by Warlord forces that had cleared the area 13099 | -6/Waste | Discovered new exit (range 12) 13102 | -6/Waste | Identified exit to Factory 13165 | -6/Waste | Entered Factory 13165 | -6/Factory | Accompanied by 3 allies 13531 | -6/Factory | Fabricated Adv. Hacking Suite? 13573 | -6/Factory | Fabricated Adv. Hacking Suite? 13696 | -6/Factory | Fabricated Adv. Hacking Suite? 13768 | -6/Factory | Local fabrication network quarantined 13889 | -6/Factory | Discovered exit to Factory (range 3) 13955 | -6/Factory | Central database locked down 14219 | -6/Factory | Discovered exit to Factory (range 4) 14317 | -6/Factory | Entered Lower Caves 14318 | -6/Lower Caves | Encountered a Warlord checkpoint 14396 | -6/Lower Caves | Spotted B-75 Beast 14785 | -6/Lower Caves | Learned Factory emergency access door positions 14794 | -6/Lower Caves | Discovered new exit (range 10) 14797 | -6/Lower Caves | Learned 4 Factory zone layouts 14800 | -6/Lower Caves | Identified exit to Lower Caves 14917 | -6/Lower Caves | Entered another Lower Caves area 14932 | -6/Lower Caves | Discovered exit to Factory (range 15) 14936 | -6/Lower Caves | Encountered a Warlord checkpoint 15186 | -6/Lower Caves | Discovered new exit (range 10) 15188 | -6/Lower Caves | Identified exit to Data Miner 15251 | -6/Lower Caves | Learned location of 1 exit from Factory 15251 | -6/Lower Caves | Learned location of 1 exit from Research 15251 | -6/Lower Caves | Learned Research security intel 15346 | -6/Lower Caves | Attracted the attention of an 0b10 outpost 15384 | -6/Lower Caves | Learned Factory machine intel 15450 | -6/Lower Caves | Entered Data Miner 15450 | -6/Data Miner | Accompanied by 2 allies 15450 | -6/Data Miner | Discovered new exit (range 6) 15469 | -6/Data Miner | Met Data Miner 15493 | -6/Data Miner | Learned location of Section 7 (-2) 15493 | -6/Data Miner | Acquired the access code to Warlord's prototype stash 15497 | -6/Data Miner | Received God Mode back door access code from Data Miner 15503 | -6/Data Miner | Data Conduit disabled 15530 | -6/Data Miner | Identified exit to Proximity Caves 15530 | -6/Data Miner | Entered Proximity Caves 15672 | -5/Proximity Caves | Spotted B-75 Beast 15742 | -5/Proximity Caves | Learned Factory trap positions 15782 | -5/Proximity Caves | Learned Factory stockpile data 15800 | -5/Proximity Caves | Entered Factory 15800 | -5/Factory | Evolved 2 slots: Propulsion x1, Utility x1 15801 | -5/Factory | Identified exit to Factory 15804 | -5/Factory | Loaded intel: 83 trap records 15807 | -5/Factory | Loaded intel: 312 machine locations 15853 | -5/Factory | Identified exit to Upper Caves 15877 | -5/Factory | Central database locked down 15949 | -5/Factory | Fabricated Nuclear Pulse Array (x2) 16111 | -5/Factory | Build established: Wizard-Sprinter 16114 | -5/Factory | Fabricated Exp. Terrain Scan Processor? 16125 | -5/Factory | Fabricated Exp. Terrain Scanner? 16168 | -5/Factory | Fabricated Lrg. Storage Unit (x1) 16438 | -5/Factory | Fabricated Exp. Cesium-ion Thruster? 16700 | -5/Factory | First assault squad dispatched 16705 | -5/Factory | Sucked down chute 16705 | -5/Factory | Entered Waste 16715 | -5/Waste | Spotted C-40 Crusher 16715 | -5/Waste | Spotted C-40 Crusher 16720 | -5/Waste | EMP discharged 16720 | -5/Waste | Spotted C-40 Crusher 16723 | -5/Waste | Discovered new exit (range 16) 16723 | -5/Waste | Spotted C-40 Crusher 16723 | -5/Waste | Spotted C-40 Crusher 16726 | -5/Waste | Identified exit to Factory 16727 | -5/Waste | Entered Factory 16769 | -5/Factory | Repaired Impulse Thruster Array 16895 | -5/Factory | Build established: Hacker-Sprinter 17349 | -5/Factory | Central database locked down 17523 | -5/Factory | Fabricated Mni. Smartbomb Launcher? 17626 | -5/Factory | Local fabrication network quarantined 17645 | -5/Factory | Fabricated P-70 Sage? 17697 | -5/Factory | Fabricated P-70 Sage? 17737 | -5/Factory | Sage 6a assimilated hostile G-50 Soldier 17831 | -5/Factory | Entered Upper Caves 17831 | -5/Upper Caves | Accompanied by 1 ally 18144 | -5/Upper Caves | Learned 12 Factory zone layouts 18262 | -5/Upper Caves | Discovered new exit (range 15) 18302 | -5/Upper Caves | Identified exit to Upper Caves 18303 | -5/Upper Caves | Entered another Upper Caves area 18308 | -5/Upper Caves | Discovered exit to Factory (range 14) 18366 | -5/Upper Caves | Learned 4 Factory zone layouts 18785 | -5/Upper Caves | Discovered new exit (range 3) 18807 | -5/Upper Caves | Identified exit to Zhirov 18847 | -5/Upper Caves | Entered Zhirov 18847 | -5/Zhirov | Accompanied by 2 allies 18847 | -5/Zhirov | Discovered new exit (range 3) 18853 | -5/Zhirov | Met Zhirov 18859 | -5/Zhirov | Learned location of Quarantine (-2) 18859 | -5/Zhirov | Learned location of Testing (-3) 18859 | -5/Zhirov | Learned location of Command (-1) 18861 | -5/Zhirov | Zhirov requested help retrieving the SGEMP Prototype 18866 | -5/Zhirov | Found Alien Artifact 18866 | -5/Zhirov | Identified Integrated Reactor 18866 | -5/Zhirov | Installed Integrated Reactor, increased core energy generation (+10) 18896 | -5/Zhirov | Found Alien Artifact 18939 | -5/Zhirov | Identified exit to Proximity Caves 18974 | -5/Zhirov | Entered Proximity Caves 18974 | -4/Proximity Caves | Accompanied by 2 allies 18974 | -4/Proximity Caves | Learned 8 Research zone layouts 19002 | -4/Proximity Caves | Learned location of 1 exit from Research 19297 | -4/Proximity Caves | Discovered exit to Factory (range 5) 19336 | -4/Proximity Caves | Entered Factory 19336 | -4/Factory | Evolved 2 slots: Propulsion x1, Utility x1 19337 | -4/Factory | Identified exit to Upper Caves 19337 | -4/Factory | Identified exit to Research 19425 | -4/Factory | Discovered exit to Research (range 2) 19582 | -4/Factory | Build established: Wizard-Sprinter 19669 | -4/Factory | P-70 Sage assimilated allied Administrator 7a 19787 | -4/Factory | Fabricated Mni. Fusion Reactor? 19912 | -4/Factory | Fabricated Mni. Fusion Reactor? 20019 | -4/Factory | Fabricated Exp. Cesium-ion Thruster (x1) 20114 | -4/Factory | Fabricated Exp. Hacking Suite? 20123 | -4/Factory | Repaired Adv. Transmission Jammer? 20334 | -4/Factory | Identified Transdimensional Reconstructor 20425 | -4/Factory | Build established: Hacker-Sprinter 20469 | -4/Factory | Fabricated Exp. Hacking Suite? 20548 | -4/Factory | Local fabrication network quarantined 20869 | -4/Factory | Manually triggered Chute Trap 20869 | -4/Factory | Sucked down chute 20869 | -4/Factory | Entered Waste 20870 | -4/Waste | Met a frightened Derelict 20875 | -4/Waste | Spotted C-40 Crusher 20881 | -4/Waste | Spotted C-40 Crusher 20883 | -4/Waste | Discovered new exit (range 16) 20883 | -4/Waste | Spotted C-40 Crusher 20883 | -4/Waste | Spotted C-40 Crusher 20884 | -4/Waste | EMP discharged 20892 | -4/Waste | Identified exit to Factory 20892 | -4/Waste | Entered Factory 20927 | -4/Factory | Build established: Wizard-Sprinter 21154 | -4/Factory | Repaired Impulse Thruster Array 21172 | -4/Factory | Fabricated Exp. System Shield? 21179 | -4/Factory | Repaired Impulse Thruster Array? 21236 | -4/Factory | Repaired Broken Adv. Reaction Control System? 21373 | -4/Factory | Repaired Mni. Fusion Reactor 21388 | -4/Factory | Spotted B-86 Titan 21525 | -4/Factory | Entered Upper Caves 21608 | -4/Upper Caves | Discovered new exit (range 10) 21673 | -4/Upper Caves | Identified exit to Upper Caves 21674 | -4/Upper Caves | Entered another Upper Caves area 21675 | -4/Upper Caves | Identified exit to Warlord 21834 | -4/Upper Caves | Entered Warlord 21842 | -4/Warlord | System corruption cleaned by Quarantine Array 21854 | -4/Warlord | Received a Watcher feed algorithm from an ecstatic Tinkerer 21863 | -4/Warlord | Found Prototype Device 21864 | -4/Warlord | Identified Minesniffer Drone Bay 21983 | -4/Warlord | Warlord's base attacked by MAIN.C 21987 | -4/Warlord | Discovered new exit (range 12) 21989 | -4/Warlord | Identified exit to Proximity Caves 22077 | -4/Warlord | Entered Proximity Caves 22384 | -3/Proximity Caves | Attracted the attention of an 0b10 checkpoint 22482 | -3/Proximity Caves | Discovered exit to Research (range 9) 22485 | -3/Proximity Caves | Entered Research 22485 | -3/Research | Evolved 2 slots: Utility x2 22486 | -3/Research | Identified exit to Armory 22487 | -3/Research | Identified exit to Testing 22487 | -3/Research | Identified exit to Research 22687 | -3/Research | Discovered exit to Research (range 22) 22718 | -3/Research | Entered Testing 22780 | -3/Testing | Build established: Wizard-Scout 22902 | -3/Testing | Protovariant out of control (PP-Q28D4LXDNP) 22902 | -3/Testing | Unleashed a protovariant (PP-Q28D4LXDNP) 22902 | -3/Testing | Protovariant out of control (PD-HHJLIOQILR) 22902 | -3/Testing | Unleashed a protovariant (PD-HHJLIOQILR) 22977 | -3/Testing | Stole the SGEMP Prototype 22998 | -3/Testing | Found Prototype Energy Cannon 23001 | -3/Testing | Identified Disintegrator 23020 | -3/Testing | Found Prototype Ballistic Gun 23023 | -3/Testing | Identified Hyp. Multirail 23044 | -3/Testing | Spotted Superbehemoth 23127 | -3/Testing | Found Prototype Slashing Weapon 23129 | -3/Testing | Identified Nanosword 23208 | -3/Testing | Found Prototype Hackware 23208 | -3/Testing | Identified System Mapper 23232 | -3/Testing | Spotted PD-HHJLIOQILR 23386 | -3/Testing | Entered Research 23386 | -2/Research | Evolved 2 slots: Propulsion x1, Utility x1 23408 | -2/Research | Identified exit to Quarantine 23578 | -2/Research | Found Prototype Processor 23594 | -2/Research | Identified Spectral Analyzer 23610 | -2/Research | Spotted B-90 Cyclops 23677 | -2/Research | Spotted B-90 Cyclops 23688 | -2/Research | Discovered new exit (range 22) 23701 | -2/Research | Entered Quarantine 23713 | -2/Quarantine | Found Alien Artifact 23748 | -2/Quarantine | Repaired Impulse Thruster Array 23767 | -2/Quarantine | Repaired Hvy. Phase Cannon 23796 | -2/Quarantine | Identified Subatomic Replicator 23823 | -2/Quarantine | Found Alien Artifact 23881 | -2/Quarantine | Met incapacitated Sigix Warrior 23881 | -2/Quarantine | Lockdown squad dispatched 23881 | -2/Quarantine | Acquired the access code to the Sigix quarantine chamber 23882 | -2/Quarantine | Unlocked Sigix quarantine chamber 23927 | -2/Quarantine | Cryocooling Duct disabled 23942 | -2/Quarantine | Ambient heat levels rising (+20) 23942 | -2/Quarantine | Non-combat units ordered to evacuate 23959 | -2/Quarantine | Cryocooling Duct disabled 23974 | -2/Quarantine | Ambient heat levels rising (+20) 23974 | -2/Quarantine | Combat units ordered to evacuate 24074 | -2/Quarantine | Quarantine Guard activated 24077 | -2/Quarantine | Found Alien Artifact 24091 | -2/Quarantine | Identified Matter Drive 24091 | -2/Quarantine | Identified Core Reset Matrix 24149 | -2/Quarantine | Discovered new exit (range 5) 24149 | -2/Quarantine | Destroyed Quarantine Guard 24151 | -2/Quarantine | Spotted Quarantine Guard 24155 | -2/Quarantine | Destroyed Quarantine Guard 24168 | -2/Quarantine | Identified exit to Access 24175 | -2/Quarantine | Found Alien Slashing Weapon 24175 | -2/Quarantine | Identified Sigix Broadsword 24195 | -2/Quarantine | Found Alien Impact Weapon 24195 | -2/Quarantine | Identified Core Stripper 24239 | -2/Quarantine | Spotted Fortress 24245 | -2/Quarantine | Spotted Quarantine Guard 24255 | -2/Quarantine | Discovered new exit (range 6) 24256 | -2/Quarantine | Identified exit to Section 7 24272 | -2/Quarantine | Entered Section 7 24279 | -2/Section 7 | Found Integrated Reactor 24279 | -2/Section 7 | Installed Integrated Reactor, increased core energy generation (+10) 24293 | -2/Section 7 | Discovered exit to Access (range 26) 24343 | -2/Section 7 | Repaired Impulse Thruster Array 24447 | -2/Section 7 | Found Alien Artifact 24510 | -2/Section 7 | Found Alien Artifact 24510 | -2/Section 7 | Identified Integrated Dissipator (x2) 24510 | -2/Section 7 | Installed Integrated Dissipator, increased core heat dissipation (+20) 24511 | -2/Section 7 | Installed Integrated Dissipator, increased core heat dissipation (+20) 24537 | -2/Section 7 | Spotted S7 Guard 24542 | -2/Section 7 | Found Alien Artifact 24542 | -2/Section 7 | Identified Core Membrane 24542 | -2/Section 7 | Installed Core Membrane, gained immunity to corruption 24599 | -2/Section 7 | Found Alien Artifact 24680 | -2/Section 7 | Spotted Striker 24680 | -2/Section 7 | Spotted Striker 24806 | -2/Section 7 | Spotted B-99 Colossus 24816 | -2/Section 7 | Found Alien Artifact 24816 | -2/Section 7 | Identified Integrity Redistributor 24816 | -2/Section 7 | Used Integrity Redistributor, redistributed integrity from core (-56) 24819 | -2/Section 7 | Found Integrity Redistributor 24820 | -2/Section 7 | Found Integrity Redistributor 24840 | -2/Section 7 | Found Alien Artifact 24840 | -2/Section 7 | Identified LRC Armor 24840 | -2/Section 7 | Installed LRC Armor, increased core integrity (+250) 24842 | -2/Section 7 | Found Alien Artifact 24842 | -2/Section 7 | Identified LRC Boosters 24842 | -2/Section 7 | Installed LRC Boosters, increased mass support (+10) 24844 | -2/Section 7 | Found Alien Artifact 24844 | -2/Section 7 | Identified LRC Insulator 24844 | -2/Section 7 | Installed LRC Insulator, gained EM resistance (25) 24869 | -2/Section 7 | Build established: Wizard-Sprinter 24876 | -2/Section 7 | Activated Sigix Exoskeleton 24876 | -2/Section 7 | Unable to understand communications from Sigix Warrior 24922 | -2/Section 7 | Spotted Alpha 7 24922 | -2/Section 7 | Spotted Alpha 7 24927 | -2/Section 7 | Spotted B-90 Cyclops 24934 | -2/Section 7 | Found Integrated Dissipator 24934 | -2/Section 7 | Installed Integrated Dissipator, increased core heat dissipation (+20) 24960 | -2/Section 7 | Entered Access 24960 | -1/Access | Accompanied by 1 ally (Sigix Warrior) 24960 | -1/Access | Evolved 2 slots: Propulsion x1, Utility x1 24961 | -1/Access | Attacked by Zhirov 24968 | -1/Access | Destroyed Svarog 24987 | -1/Access | Destroyed Zhirov 24997 | -1/Access | Found Adv. Powered Armor 25000 | -1/Access | Allies destroyed Perun 25001 | -1/Access | Found Adv. Powered Armor 25089 | -1/Access | Spotted Investigator 25089 | -1/Access | Destroyed Investigator 25089 | -1/Access | Garrison activated, responded to threat 25131 | -1/Access | Used Integrity Redistributor, redistributed integrity from core (-156) 25141 | -1/Access | Found Prototype Launcher 25144 | -1/Access | Found Prototype Launcher 25162 | -1/Access | Used Subatomic Replicator to replicate Hyp. Multirail 25168 | -1/Access | Spotted Executioner 25168 | -1/Access | Spotted Striker 25194 | -1/Access | Destroyed Striker 25197 | -1/Access | Destroyed Executioner 25275 | -1/Access | Destroyed Executioner 25303 | -1/Access | Identified Containment Facilitator (x2) 25313 | -1/Access | Spotted Executioner 25314 | -1/Access | Destroyed 39 combat bots 25314 | -1/Access | Spotted Executioner 25325 | -1/Access | Identified Hpw. Transdimensional Reconstructor 25325 | -1/Access | Warped through subspace 25334 | -1/Access | Found Exp. Terrain Scan Processor 25353 | -1/Access | Energy Cycler disabled 25378 | -1/Access | Build established: Scavenger-Mutant 25480 | -1/Access | Spotted Striker 25539 | -1/Access | Destroyed Striker 25564 | -1/Access | Destroyed 13 combat bots 25568 | -1/Access | Spotted Executioner 25568 | -1/Access | Spotted Striker 25575 | -1/Access | Destroyed Striker 25579 | -1/Access | Warped through subspace 25609 | -1/Access | Lost 12 parts (6n5u1w) 25636 | -1/Access | Spotted Striker 25636 | -1/Access | Spotted Executioner 25660 | -1/Access | Core integrity fell below 50% 25665 | -1/Access | Spotted Executioner 25665 | -1/Access | Spotted Executioner 25672 | -1/Access | Core integrity fell below 20% 25680 | -1/Access | Destroyed by Striker with Plasma Lance Last Messages --------------- 25667_ Exp. System Shield destroyed. 25667_ Penetrated by Slug. 25667_ Longscan Aggregator disabled. 25668_ Penetrated by Slug. 25668_ Slug penetrates Wall. 25669_ Penetrated by Slug. 25670_ Slug penetrates I-47 Archangel. 25670_ I-47 Archangel suffers critical hit. 25670_ System Mapper blown off. 25670_ Exp. Terrain Scan Processor blown off. 25670_ Exp. Signal Interpreter blown off. 25670_ Exp. Terrain Scan Processor blown off. 25670_ E-15 Imp destroyed. 25670_ Door malfunctions. 25672_ Penetrated by Slug. 25672_ Slug penetrates Wall. 25672_ Penetrated by Slug. 25675_ ALERT: Heavy assault forces dispatched. 25675_ Penetrated by Slug. 25677_ Dropped Lrg. Storage Unit. Map ----- +----------------------------------------------------+ | | | | | ?????????????????????????????????????????????????? | | ?????????????????????????????????????????????????? | | ?????????????????????????????????????????????????? | | ?????????????????????????????????????????????????? | | ?????????????????????????????????????????????????? | | ?????????????????????????????????????????????????? | | ?????????????????????????????????????????????????? | | ????????????????????????????????????????????###### | | ???????????????????????#####????????????########"# | | ?????????????????????# #????????? # " ] | | ?????????????????????# #???????? # """ | | ?????????????????????# #??????###### """ | | ?????????????????????# #???? + " | | ?????????????????????# ! #??? ####### | | ?????????????????????# #?? ####### ! | | ?????????????????????# ! +? ####### ! | | ?????????????????????? # ####### ! | | ?????????????????????? # ###########"+""# | | ??????????????????????? # | | ??????????????????????? # | | ???????????????????????? # | | ???????????????????????? # | | ????????????????????????#/### | | ???????????????????####?#@### """"" | | ???????????????????# %#K### ##### """" | | ???????????????????# # ### ##### """" | | ???????????????????# +[] ##### """"%%% | | ???????????????????#! #!/#### ##### """" | | ???????????????????# #p##### ##### """" | | ???????????????????# pE;#### ##### | | ???????????????????####";;#####+##### % | | ???????????????????# ##### | | ???????????????????# h ##### | | ???????????????????# ##### | | ???????????????????# / ##### """# | | ???????????????????# ! " ### "" # | | ???????????????????# "#### R" | | ??????????????????#" " " ##### """# | | ??????????????????## "% "" ##### "" # | | ???????????????????# """""" ##### # | | ???????????????????# """""" / * | | ???????????????????# "" ###### | | ???????????????????# "" #####"##/### | | ???????????????????##+#########""# ] # # | | ??????????????????? ### # # | | ??????????????????? " # !*# | | ?????????????????? "%" # [# # | | ?????????????????? " # !# # | +----------------------------------------------------+ Best States ------------- Heat Dissipation 212 Energy Generation 60 Energy Capacity 480 Matter Stores 300 Matter Capacity 300 Sight Range 16 Robot Scan Range 30 Terrain Scan Range 30 Terrain Scan Density 2010 Jamming Range 16 Armor Coverage 1000 Resistance: KI 30 Resistance: EM 25 Core Shielding 30 Evasion (%) 79 Melee Accuracy 8 Recoil Reduction 4 Offensive Hacking 54 Defensive Hacking 16 Item Schematics ----------------- Lrg. Storage Unit | -10/Materials | Hacked Adv. Signal Interpreter | -8/Materials | Hacked Adv. Sensor Array | -8/Materials | Scanalyzed Imp. Light Armor Plating | -8/Materials | Scanalyzed Hacking Suite | -8/Materials | Scanalyzed Cld. VTOL Module | -7/Factory | Scanalyzed Lrn. Sensor Array | -7/Factory | Hacked Exp. Sensor Array | -6/Factory | Hacked Exp. Signal Interpreter | -6/Factory | Hacked Adv. Transmission Jammer | -6/Factory | Hacked Imp. Armor Integrity Analyzer | -6/Factory | Hacked Adv. Hacking Suite | -6/Factory | Scanalyzed Force Lance | -6/Factory | Downloaded Nuclear Pulse Array | -6/Factory | Hacked Combat Drone Bay | -6/Data Miner | Free Lgt. Regenerative Plating | -6/Data Miner | Free Exp. Cesium-ion Thruster | -6/Data Miner | Free Exp. Terrain Scan Processor | -6/Data Miner | Free Tactical Coordination Suite | -6/Data Miner | Free Exp. Transmission Jammer | -6/Data Miner | Free Exp. ECM Suite | -6/Data Miner | Free Exp. Terrain Scanner | -5/Factory | Hacked Mni. Smartbomb Launcher | -5/Factory | Hacked Assault Drone Bay | -5/Zhirov | Free Exp. Heat Sink | -5/Zhirov | Free Exp. Optical Array | -5/Zhirov | Free Imp. Arc Thrower | -5/Zhirov | Free Impulse Thruster Array | -4/Factory | Hacked Mni. Fusion Reactor | -4/Factory | Hacked Powered Armor | -4/Factory | Hacked Exp. Hacking Suite | -4/Factory | Hacked Exp. System Shield | -4/Factory | Hacked Adv. Reaction Control System | -4/Factory | Scanalyzed Exp. Cloaking Device | -2/Research | Hacked Robot Schematics ------------------ P-60 Hacker | -7/Factory | Hacked L-41 Fighter | -6/Factory | Hacked G-50 Soldier | -6/Factory | Hacked S-27 Virus | -6/Data Miner | Free H-66 Slayer | -6/Data Miner | Free P-70 Sage | -6/Data Miner | Free I-36 Angel | -6/Data Miner | Free I-47 Archangel | -6/Data Miner | Free Fabricated ------------ Cld. VTOL Module | x1 | -7/Factory Lrn. Sensor Array | x1 | -7/Factory P-60 Hacker | x2 | -7/Factory P-60 Hacker | x2 | -7/Factory Hacking Suite | x1 | -6/Factory Exp. Sensor Array | x1 | -6/Factory Exp. Signal Interpreter | x1 | -6/Factory Adv. Hacking Suite | x1 | -6/Factory Adv. Hacking Suite | x1 | -6/Factory Adv. Hacking Suite | x1 | -6/Factory Nuclear Pulse Array | x2 | -5/Factory Exp. Terrain Scan Processor | x1 | -5/Factory Exp. Terrain Scanner | x1 | -5/Factory Lrg. Storage Unit | x1 | -5/Factory Exp. Cesium-ion Thruster | x1 | -5/Factory Mni. Smartbomb Launcher | x1 | -5/Factory P-70 Sage | x2 | -5/Factory P-70 Sage | x2 | -5/Factory Mni. Fusion Reactor | x1 | -4/Factory Mni. Fusion Reactor | x1 | -4/Factory Exp. Cesium-ion Thruster | x1 | -4/Factory Exp. Hacking Suite | x1 | -4/Factory Exp. Hacking Suite | x1 | -4/Factory Exp. System Shield | x1 | -4/Factory Alien Tech Used ----------------- Integrated Reactor Sigix Broadsword Core Stripper Integrated Dissipator Core Membrane Integrity Redistributor LRC Armor LRC Boosters LRC Insulator Subatomic Replicator High-powered Transdimensional Reconstructor Transdimensional Reconstructor Matter Drive Achievements -------------- None Challenges ------------ None Game ------ Seed SigixAssembledChainsword Manual? 0 Play Time 05:57:54 Cumulative 753.0 hours Start 2021.01.12 @ 03:52:30 End 2021.01.14 @ 18:08:32 Sessions 9 Manual Loads 0 Difficulty Rogue Special Mode None Game No. 530 Rogue 526 Adventurer 4 Explorer 0 Win Type - Total 82 Types 63/8/4/3/2/0/0/1/1 Lore% 95 Gallery% 97 Achievement% 96 Wizard Run 0 Options --------- ASCII 0 Keyboard 1 Movement Vi Keybinds 0 Fullscreen 0 Font 16/Terminus Map View 76x50 Tactical HUD 1 Map Filters NONE Filters NONE Steam 1 RUN: 50ade4fa-12c6-47f3-ae57-d1c4e2bedb84